Workbook

Sheet 使い方
A1: Microsoft Excel で フラッシュカードを作ろう（テキスト用）
A3: このファイルは，両面にテキストデータを扱うためのものです。
A4: 「Microsoft Excel で フラッシュカードを作ろう」のすべてのもとになったものです。
A5: 使用する機器に合わせた，セルの高さ調整などはこのファイルであらかじめ数値を確認しておくと便利です。
A7: このワークシートを使うことで、ディスプレイやプロジェクターをフラッシュカードのように使ったり、
A8: 通常のフラッシュカードを作成したりすることが手軽にできます。
A9: 使い方は、下記の通りです。
A11: 1 | B11: 「フラッシュカードデータ」の表に、データを入力します。
C12: タイトルをセルC2に入力する。
C13: データの入力範囲は、"D4:E103"です。
A15: 2 | B15: 「フラッシュカード(画面表示）」「フラッシュカード(画面表示）《指定順表示》」で、
B16: フラッシュカードをディスプレイやプロジェクターで表示します。
C17: 画面のサイズに合わせて、タイトル行やカード行の高さを変えたり、
C18: Excelの表示倍率を変えたりして、フラッシュカードがちょうどよく
C19: 表示されるようにします。
C20: カーソルキー（↑↓）を使って、フラッシュカードの表、裏を切り替えます。
C21: ファンクションキー「F9」を押すことで、表示する順番が変わります。
A23: 3 | B23: 「フラッシュカード(印刷用）」で、フラッシュカードを作成します。
C24: 横長印刷用では，A4用紙の横向きに印刷をします。
C25: 横短印刷用では，A4用紙の縦向きに印刷をします。
C26: 印刷されたら、2つ折りにしてのり付けすれば、フラッシュカードが作成できます。
A28: 4 | B28: 「フラッシュカード(画面表示）」「フラッシュカード(画面表示）《指定順表示》」で、
B29: タイトルの表示をON,OFFするには，下のボタンを押してください。
A31: 5 | B31: 「フラッシュカード(画面表示）」「フラッシュカード(画面表示）《指定順表示》」で、
B32: 裏面表示をON,OFFするには，下のボタンを押してください。
A37: 「Microsoft Excel で フラッシュカードを作ろう」公開アドレス
A38: http://www.vector.co.jp/soft/winnt/edu/se504284.html

Sheet フラッシュカードデータ
C1: フラッシュカードデータ | G1: フラッシュカード （画面表示）
C2: 数字でかきましょう
C3: № | D3: 表 | E3: 裏
A4: =IF(D4="","",RAND()) -> 0.6527205524 | B4: =IF(A4="","",RANK(A4,$A$4:$A$103)) -> 40 | C4: 1 | D4: =INT(RAND()*9+1)*100+INT(RAND()*99) -> 920 | E4: =D4 -> 920
A5: =IF(D5="","",RAND()) -> 0.2550740999 | B5: =IF(A5="","",RANK(A5,$A$4:$A$103)) -> 77 | C5: 2 | D5: =INT(RAND()*9+1)*100+INT(RAND()*99) -> 672 | E5: =D5 -> 672
A6: 0.8092433814 | B6: 23 | C6: 3 | D6: 496 | E6: 496
A7: 0.7376296315 | B7: 29 | C7: 4 | D7: 545 | E7: 545
A8: 0.00417148212 | B8: 99 | C8: 5 | D8: 260 | E8: 260
A9: 0.7105741224 | B9: 32 | C9: 6 | D9: 473 | E9: 473
A10: 0.5904475578 | B10: 47 | C10: 7 | D10: 176 | E10: 176
A11: 0.1728627613 | B11: 87 | C11: 8 | D11: 850 | E11: 850
A12: 0.02701043376 | B12: 95 | C12: 9 | D12: 523 | E12: 523
A13: 0.005785840321 | B13: 97 | C13: 10 | D13: 933 | E13: 933
A14: 0.2666220154 | B14: 76 | C14: 11 | D14: 855 | E14: 855
A15: 0.5366672543 | B15: 51 | C15: 12 | D15: 674 | E15: 674 | G15: ←左の表に
A16: 0.1652925091 | B16: 88 | C16: 13 | D16: 151 | E16: 151 | G16: フラッシュカードの表・裏に
A17: 0.42579801 | B17: 58 | C17: 14 | D17: 847 | E17: 847 | G17: 表示するデータを入力します。
A18: 0.6669222337 | B18: 37 | C18: 15 | D18: 449 | E18: 449
A19: 0.4340921785 | B19: 55 | C19: 16 | D19: 797 | E19: 797
A20: 0.7382377181 | B20: 28 | C20: 17 | D20: 338 | E20: 338
A21: 0.6597214082 | B21: 38 | C21: 18 | D21: 172 | E21: 172
A22: 0.0490191995 | B22: 93 | C22: 19 | D22: 113 | E22: 113
A23: 0.372222304 | B23: 64 | C23: 20 | D23: 756 | E23: 756
A24: 0.7657893025 | B24: 25 | C24: 21 | D24: 453 | E24: 453
A25: 0.9785515873 | B25: 3 | C25: 22 | D25: 231 | E25: 231
A26: 0.914585804 | B26: 10 | C26: 23 | D26: 284 | E26: 284
A27: 0.2692959435 | B27: 75 | C27: 24 | D27: 930 | E27: 930
A28: 0.3495056671 | B28: 67 | C28: 25 | D28: 825 | E28: 825
A29: 0.5376278794 | B29: 50 | C29: 26 | D29: 160 | E29: 160
A30: 0.227022539 | B30: 79 | C30: 27 | D30: 118 | E30: 118
A31: 0.6762129695 | B31: 35 | C31: 28 | D31: 921 | E31: 921
A32: 0.02395779274 | B32: 96 | C32: 29 | D32: 809 | E32: 809
A33: 0.6306031685 | B33: 43 | C33: 30 | D33: 518 | E33: 518
A34: 0.9001661192 | B34: 11 | C34: 31 | D34: 553 | E34: 553
A35: 0.05918582418 | B35: 92 | C35: 32 | D35: 882 | E35: 882
A36: 0.4268047825 | B36: 57 | C36: 33 | D36: 444 | E36: 444
A37: 0.1876583255 | B37: 85 | C37: 34 | D37: 159 | E37: 159
A38: 0.6312419098 | B38: 42 | C38: 35 | D38: 464 | E38: 464
A39: 0.6750005512 | B39: 36 | C39: 36 | D39: 741 | E39: 741
A40: 0.9386033632 | B40: 7 | C40: 37 | D40: 891 | E40: 891
A41: 0.7502214878 | B41: 27 | C41: 38 | D41: 157 | E41: 157
A42: 0.7206641771 | B42: 30 | C42: 39 | D42: 824 | E42: 824
A43: 0.1143951154 | B43: 90 | C43: 40 | D43: 786 | E43: 786
A44: 0.8645019953 | B44: 18 | C44: 41 | D44: 615 | E44: 615
A45: 0.3204956104 | B45: 72 | C45: 42 | D45: 844 | E45: 844
A46: 0.6264075952 | B46: 44 | C46: 43 | D46: 696 | E46: 696
A47: 0.4268360812 | B47: 56 | C47: 44 | D47: 683 | E47: 683
A48: 0.9820014098 | B48: 2 | C48: 45 | D48: 771 | E48: 771
A49: 0.4161977034 | B49: 62 | C49: 46 | D49: 500 | E49: 500
A50: 0.5594335252 | B50: 49 | C50: 47 | D50: 231 | E50: 231
A51: 0.9207914905 | B51: 9 | C51: 48 | D51: 349 | E51: 349
A52: 0.9617747651 | B52: 5 | C52: 49 | D52: 371 | E52: 371
A53: 0.1254841287 | B53: 89 | C53: 50 | D53: 172 | E53: 172
A54: 0.4486998243 | B54: 54 | C54: 51 | D54: 545 | E54: 545
A55: 0.6859027506 | B55: 33 | C55: 52 | D55: 617 | E55: 617
A56: 0.00141435316 | B56: 100 | C56: 53 | D56: 504 | E56: 504
A57: 0.209889317 | B57: 82 | C57: 54 | D57: 101 | E57: 101
A58: 0.6177603004 | B58: 45 | C58: 55 | D58: 111 | E58: 111
A59: 0.842565643 | B59: 20 | C59: 56 | D59: 129 | E59: 129
A60: 0.8879827337 | B60: 14 | C60: 57 | D60: 327 | E60: 327
A61: 0.08043171723 | B61: 91 | C61: 58 | D61: 350 | E61: 350
A62: 0.3549723221 | B62: 65 | C62: 59 | D62: 645 | E62: 645
A63: 0.8379518939 | B63: 21 | C63: 60 | D63: 608 | E63: 608
A64: 0.3158250199 | B64: 73 | C64: 61 | D64: 297 | E64: 297
A65: 0.8716839108 | B65: 15 | C65: 62 | D65: 196 | E65: 196
A66: 0.4057854428 | B66: 63 | C66: 63 | D66: 758 | E66: 758
A67: 0.005117983815 | B67: 98 | C67: 64 | D67: 580 | E67: 580
A68: 0.2104056436 | B68: 80 | C68: 65 | D68: 414 | E68: 414
A69: =IF(D69="","",RAND()) -> 0.3480976523 | B69: =IF(A69="","",RANK(A69,$A$4:$A$103)) -> 68 | C69: 66 | D69: =INT(RAND()*9+1)*100+INT(RAND()*99) -> 555 | E69: =D69 -> 555
A70: 0.4181228548 | B70: 60 | C70: 67 | D70: 196 | E70: 196
A71: 0.8477552438 | B71: 19 | C71: 68 | D71: 338 | E71: 338
A72: 0.3432437788 | B72: 69 | C72: 69 | D72: 719 | E72: 719
A73: 0.6596851205 | B73: 39 | C73: 70 | D73: 929 | E73: 929
A74: 0.1877364205 | B74: 83 | C74: 71 | D74: 393 | E74: 393
A75: 0.351905012 | B75: 66 | C75: 72 | D75: 897 | E75: 897
A76: 0.1820586741 | B76: 86 | C76: 73 | D76: 974 | E76: 974
A77: 0.8880407769 | B77: 13 | C77: 74 | D77: 153 | E77: 153
A78: 0.2101094441 | B78: 81 | C78: 75 | D78: 862 | E78: 862
A79: 0.3115939107 | B79: 74 | C79: 76 | D79: 590 | E79: 590
A80: 0.8667611672 | B80: 16 | C80: 77 | D80: 258 | E80: 258
A81: 0.3331393128 | B81: 71 | C81: 78 | D81: 471 | E81: 471
A82: 0.03300322305 | B82: 94 | C82: 79 | D82: 271 | E82: 271
A83: 0.2287252977 | B83: 78 | C83: 80 | D83: 991 | E83: 991
A84: 0.5813386498 | B84: 48 | C84: 81 | D84: 459 | E84: 459
A85: 0.7854835825 | B85: 24 | C85: 82 | D85: 247 | E85: 247
A86: 0.1877246456 | B86: 84 | C86: 83 | D86: 203 | E86: 203
A87: 0.4690883052 | B87: 53 | C87: 84 | D87: 282 | E87: 282
A88: 0.4172637956 | B88: 61 | C88: 85 | D88: 485 | E88: 485
A89: 0.6417815226 | B89: 41 | C89: 86 | D89: 143 | E89: 143
A90: 0.3332010712 | B90: 70 | C90: 87 | D90: 137 | E90: 137
A91: 0.9762066201 | B91: 4 | C91: 88 | D91: 880 | E91: 880
A92: 0.5923288043 | B92: 46 | C92: 89 | D92: 194 | E92: 194
A93: 0.9446774136 | B93: 6 | C93: 90 | D93: 838 | E93: 838
A94: 0.7183197659 | B94: 31 | C94: 91 | D94: 202 | E94: 202
A95: 0.9368793383 | B95: 8 | C95: 92 | D95: 664 | E95: 664
A96: 0.8665395237 | B96: 17 | C96: 93 | D96: 745 | E96: 745
A97: 0.7640214809 | B97: 26 | C97: 94 | D97: 819 | E97: 819
A98: 0.8929773653 | B98: 12 | C98: 95 | D98: 989 | E98: 989
A99: 0.5232511816 | B99: 52 | C99: 96 | D99: 675 | E99: 675
A100: 0.4210155156 | B100: 59 | C100: 97 | D100: 934 | E100: 934
A101: 0.9888288394 | B101: 1 | C101: 98 | D101: 643 | E101: 643
A102: 0.6791528331 | B102: 34 | C102: 99 | D102: 605 | E102: 605
A103: 0.8197908975 | B103: 22 | C103: 100 | D103: 942 | E103: 942

Sheet フラッシュカード(画面表示）
B1: =IF(フラッシュカードデータ!$C$2="","",フラッシュカードデータ!$C$2) -> 数字でかきましょう | K1: 100 | Q1: 409
A2: 1 | B2: =IFERROR(VLOOKUP($A2,フラッシュカードデータ!$B$4:$E$103,3,FALSE),"") -> 643 | D2: 表示機器にあわせて 行の高さや 表示倍率を調節してください。
B3: =IFERROR(VLOOKUP($A2,フラッシュカードデータ!$B$4:$E$103,4,FALSE),"") -> 643 | D3: カーソルキー（↑↓）を使って、 フラッシュカードを切り替えて 使用してください。
A4: 2 | B4: =IFERROR(VLOOKUP($A4,フラッシュカードデータ!$B$4:$E$103,3,FALSE),"") -> 771
B5: =IFERROR(VLOOKUP($A4,フラッシュカードデータ!$B$4:$E$103,4,FALSE),"") -> 771
A6: 3 | B6: =IFERROR(VLOOKUP($A6,フラッシュカードデータ!$B$4:$E$103,3,FALSE),"") -> 231
B7: =IFERROR(VLOOKUP($A6,フラッシュカードデータ!$B$4:$E$103,4,FALSE),"") -> 231
A8: 4 | B8: =IFERROR(VLOOKUP($A8,フラッシュカードデータ!$B$4:$E$103,3,FALSE),"") -> 880
B9: =IFERROR(VLOOKUP($A8,フラッシュカードデータ!$B$4:$E$103,4,FALSE),"") -> 880
A10: 5 | B10: =IFERROR(VLOOKUP($A10,フラッシュカードデータ!$B$4:$E$103,3,FALSE),"") -> 371
B11: =IFERROR(VLOOKUP($A10,フラッシュカードデータ!$B$4:$E$103,4,FALSE),"") -> 371
A12: 6 | B12: =IFERROR(VLOOKUP($A12,フラッシュカードデータ!$B$4:$E$103,3,FALSE),"") -> 838
B13: =IFERROR(VLOOKUP($A12,フラッシュカードデータ!$B$4:$E$103,4,FALSE),"") -> 838
A14: 7 | B14: =IFERROR(VLOOKUP($A14,フラッシュカードデータ!$B$4:$E$103,3,FALSE),"") -> 891
B15: =IFERROR(VLOOKUP($A14,フラッシュカードデータ!$B$4:$E$103,4,FALSE),"") -> 891
A16: 8 | B16: =IFERROR(VLOOKUP($A16,フラッシュカードデータ!$B$4:$E$103,3,FALSE),"") -> 664
B17: =IFERROR(VLOOKUP($A16,フラッシュカードデータ!$B$4:$E$103,4,FALSE),"") -> 664
A18: 9 | B18: =IFERROR(VLOOKUP($A18,フラッシュカードデータ!$B$4:$E$103,3,FALSE),"") -> 349
B19: =IFERROR(VLOOKUP($A18,フラッシュカードデータ!$B$4:$E$103,4,FALSE),"") -> 349
A20: 10 | B20: =IFERROR(VLOOKUP($A20,フラッシュカードデータ!$B$4:$E$103,3,FALSE),"") -> 284
B21: =IFERROR(VLOOKUP($A20,フラッシュカードデータ!$B$4:$E$103,4,FALSE),"") -> 284
A22: 11 | B22: =IFERROR(VLOOKUP($A22,フラッシュカードデータ!$B$4:$E$103,3,FALSE),"") -> 553
B23: =IFERROR(VLOOKUP($A22,フラッシュカードデータ!$B$4:$E$103,4,FALSE),"") -> 553
A24: 12 | B24: =IFERROR(VLOOKUP($A24,フラッシュカードデータ!$B$4:$E$103,3,FALSE),"") -> 989
B25: =IFERROR(VLOOKUP($A24,フラッシュカードデータ!$B$4:$E$103,4,FALSE),"") -> 989
A26: 13 | B26: =IFERROR(VLOOKUP($A26,フラッシュカードデータ!$B$4:$E$103,3,FALSE),"") -> 153
B27: =IFERROR(VLOOKUP($A26,フラッシュカードデータ!$B$4:$E$103,4,FALSE),"") -> 153
A28: 14 | B28: =IFERROR(VLOOKUP($A28,フラッシュカードデータ!$B$4:$E$103,3,FALSE),"") -> 327
B29: =IFERROR(VLOOKUP($A28,フラッシュカードデータ!$B$4:$E$103,4,FALSE),"") -> 327
A30: 15 | B30: =IFERROR(VLOOKUP($A30,フラッシュカードデータ!$B$4:$E$103,3,FALSE),"") -> 196
B31: =IFERROR(VLOOKUP($A30,フラッシュカードデータ!$B$4:$E$103,4,FALSE),"") -> 196
A32: 16 | B32: =IFERROR(VLOOKUP($A32,フラッシュカードデータ!$B$4:$E$103,3,FALSE),"") -> 258
B33: =IFERROR(VLOOKUP($A32,フラッシュカードデータ!$B$4:$E$103,4,FALSE),"") -> 258
A34: 17 | B34: =IFERROR(VLOOKUP($A34,フラッシュカードデータ!$B$4:$E$103,3,FALSE),"") -> 745
B35: =IFERROR(VLOOKUP($A34,フラッシュカードデータ!$B$4:$E$103,4,FALSE),"") -> 745
A36: 18 | B36: =IFERROR(VLOOKUP($A36,フラッシュカードデータ!$B$4:$E$103,3,FALSE),"") -> 615
B37: =IFERROR(VLOOKUP($A36,フラッシュカードデータ!$B$4:$E$103,4,FALSE),"") -> 615
A38: 19 | B38: =IFERROR(VLOOKUP($A38,フラッシュカードデータ!$B$4:$E$103,3,FALSE),"") -> 338
B39: =IFERROR(VLOOKUP($A38,フラッシュカードデータ!$B$4:$E$103,4,FALSE),"") -> 338
A40: 20 | B40: =IFERROR(VLOOKUP($A40,フラッシュカードデータ!$B$4:$E$103,3,FALSE),"") -> 129
B41: =IFERROR(VLOOKUP($A40,フラッシュカードデータ!$B$4:$E$103,4,FALSE),"") -> 129
A42: 21 | B42: =IFERROR(VLOOKUP($A42,フラッシュカードデータ!$B$4:$E$103,3,FALSE),"") -> 608
B43: =IFERROR(VLOOKUP($A42,フラッシュカードデータ!$B$4:$E$103,4,FALSE),"") -> 608
A44: 22 | B44: =IFERROR(VLOOKUP($A44,フラッシュカードデータ!$B$4:$E$103,3,FALSE),"") -> 942
B45: =IFERROR(VLOOKUP($A44,フラッシュカードデータ!$B$4:$E$103,4,FALSE),"") -> 942
A46: 23 | B46: =IFERROR(VLOOKUP($A46,フラッシュカードデータ!$B$4:$E$103,3,FALSE),"") -> 496
B47: =IFERROR(VLOOKUP($A46,フラッシュカードデータ!$B$4:$E$103,4,FALSE),"") -> 496
A48: 24 | B48: =IFERROR(VLOOKUP($A48,フラッシュカードデータ!$B$4:$E$103,3,FALSE),"") -> 247
B49: =IFERROR(VLOOKUP($A48,フラッシュカードデータ!$B$4:$E$103,4,FALSE),"") -> 247
A50: 25 | B50: =IFERROR(VLOOKUP($A50,フラッシュカードデータ!$B$4:$E$103,3,FALSE),"") -> 453
B51: =IFERROR(VLOOKUP($A50,フラッシュカードデータ!$B$4:$E$103,4,FALSE),"") -> 453
A52: 26 | B52: =IFERROR(VLOOKUP($A52,フラッシュカードデータ!$B$4:$E$103,3,FALSE),"") -> 819
B53: =IFERROR(VLOOKUP($A52,フラッシュカードデータ!$B$4:$E$103,4,FALSE),"") -> 819
A54: 27 | B54: =IFERROR(VLOOKUP($A54,フラッシュカードデータ!$B$4:$E$103,3,FALSE),"") -> 157
B55: =IFERROR(VLOOKUP($A54,フラッシュカードデータ!$B$4:$E$103,4,FALSE),"") -> 157
A56: 28 | B56: =IFERROR(VLOOKUP($A56,フラッシュカードデータ!$B$4:$E$103,3,FALSE),"") -> 338
B57: =IFERROR(VLOOKUP($A56,フラッシュカードデータ!$B$4:$E$103,4,FALSE),"") -> 338
A58: 29 | B58: =IFERROR(VLOOKUP($A58,フラッシュカードデータ!$B$4:$E$103,3,FALSE),"") -> 545
B59: =IFERROR(VLOOKUP($A58,フラッシュカードデータ!$B$4:$E$103,4,FALSE),"") -> 545
A60: 30 | B60: =IFERROR(VLOOKUP($A60,フラッシュカードデータ!$B$4:$E$103,3,FALSE),"") -> 824
B61: =IFERROR(VLOOKUP($A60,フラッシュカードデータ!$B$4:$E$103,4,FALSE),"") -> 824
A62: 31 | B62: =IFERROR(VLOOKUP($A62,フラッシュカードデータ!$B$4:$E$103,3,FALSE),"") -> 202
B63: =IFERROR(VLOOKUP($A62,フラッシュカードデータ!$B$4:$E$103,4,FALSE),"") -> 202
A64: 32 | B64: =IFERROR(VLOOKUP($A64,フラッシュカードデータ!$B$4:$E$103,3,FALSE),"") -> 473
B65: =IFERROR(VLOOKUP($A64,フラッシュカードデータ!$B$4:$E$103,4,FALSE),"") -> 473
A66: 33 | B66: =IFERROR(VLOOKUP($A66,フラッシュカードデータ!$B$4:$E$103,3,FALSE),"") -> 617
B67: =IFERROR(VLOOKUP($A66,フラッシュカードデータ!$B$4:$E$103,4,FALSE),"") -> 617
A68: 34 | B68: =IFERROR(VLOOKUP($A68,フラッシュカードデータ!$B$4:$E$103,3,FALSE),"") -> 605
B69: =IFERROR(VLOOKUP($A68,フラッシュカードデータ!$B$4:$E$103,4,FALSE),"") -> 605
A70: 35 | B70: =IFERROR(VLOOKUP($A70,フラッシュカードデータ!$B$4:$E$103,3,FALSE),"") -> 921
B71: =IFERROR(VLOOKUP($A70,フラッシュカードデータ!$B$4:$E$103,4,FALSE),"") -> 921
A72: 36 | B72: =IFERROR(VLOOKUP($A72,フラッシュカードデータ!$B$4:$E$103,3,FALSE),"") -> 741
B73: =IFERROR(VLOOKUP($A72,フラッシュカードデータ!$B$4:$E$103,4,FALSE),"") -> 741
A74: 37 | B74: =IFERROR(VLOOKUP($A74,フラッシュカードデータ!$B$4:$E$103,3,FALSE),"") -> 449
B75: =IFERROR(VLOOKUP($A74,フラッシュカードデータ!$B$4:$E$103,4,FALSE),"") -> 449
A76: 38 | B76: =IFERROR(VLOOKUP($A76,フラッシュカードデータ!$B$4:$E$103,3,FALSE),"") -> 172
B77: =IFERROR(VLOOKUP($A76,フラッシュカードデータ!$B$4:$E$103,4,FALSE),"") -> 172
A78: 39 | B78: =IFERROR(VLOOKUP($A78,フラッシュカードデータ!$B$4:$E$103,3,FALSE),"") -> 929
B79: =IFERROR(VLOOKUP($A78,フラッシュカードデータ!$B$4:$E$103,4,FALSE),"") -> 929
A80: 40 | B80: =IFERROR(VLOOKUP($A80,フラッシュカードデータ!$B$4:$E$103,3,FALSE),"") -> 920
B81: =IFERROR(VLOOKUP($A80,フラッシュカードデータ!$B$4:$E$103,4,FALSE),"") -> 920
A82: 41 | B82: =IFERROR(VLOOKUP($A82,フラッシュカードデータ!$B$4:$E$103,3,FALSE),"") -> 143
B83: =IFERROR(VLOOKUP($A82,フラッシュカードデータ!$B$4:$E$103,4,FALSE),"") -> 143
A84: 42 | B84: =IFERROR(VLOOKUP($A84,フラッシュカードデータ!$B$4:$E$103,3,FALSE),"") -> 464
B85: =IFERROR(VLOOKUP($A84,フラッシュカードデータ!$B$4:$E$103,4,FALSE),"") -> 464
A86: 43 | B86: =IFERROR(VLOOKUP($A86,フラッシュカードデータ!$B$4:$E$103,3,FALSE),"") -> 518
B87: =IFERROR(VLOOKUP($A86,フラッシュカードデータ!$B$4:$E$103,4,FALSE),"") -> 518
A88: 44 | B88: =IFERROR(VLOOKUP($A88,フラッシュカードデータ!$B$4:$E$103,3,FALSE),"") -> 696
B89: =IFERROR(VLOOKUP($A88,フラッシュカードデータ!$B$4:$E$103,4,FALSE),"") -> 696
A90: 45 | B90: =IFERROR(VLOOKUP($A90,フラッシュカードデータ!$B$4:$E$103,3,FALSE),"") -> 111
B91: =IFERROR(VLOOKUP($A90,フラッシュカードデータ!$B$4:$E$103,4,FALSE),"") -> 111
A92: 46 | B92: =IFERROR(VLOOKUP($A92,フラッシュカードデータ!$B$4:$E$103,3,FALSE),"") -> 194
B93: =IFERROR(VLOOKUP($A92,フラッシュカードデータ!$B$4:$E$103,4,FALSE),"") -> 194
A94: 47 | B94: =IFERROR(VLOOKUP($A94,フラッシュカードデータ!$B$4:$E$103,3,FALSE),"") -> 176
B95: =IFERROR(VLOOKUP($A94,フラッシュカードデータ!$B$4:$E$103,4,FALSE),"") -> 176
A96: 48 | B96: =IFERROR(VLOOKUP($A96,フラッシュカードデータ!$B$4:$E$103,3,FALSE),"") -> 459
B97: =IFERROR(VLOOKUP($A96,フラッシュカードデータ!$B$4:$E$103,4,FALSE),"") -> 459
A98: 49 | B98: =IFERROR(VLOOKUP($A98,フラッシュカードデータ!$B$4:$E$103,3,FALSE),"") -> 231
B99: =IFERROR(VLOOKUP($A98,フラッシュカードデータ!$B$4:$E$103,4,FALSE),"") -> 231
A100: 50 | B100: =IFERROR(VLOOKUP($A100,フラッシュカードデータ!$B$4:$E$103,3,FALSE),"") -> 160
B101: =IFERROR(VLOOKUP($A100,フラッシュカードデータ!$B$4:$E$103,4,FALSE),"") -> 160
A102: 51 | B102: =IFERROR(VLOOKUP($A102,フラッシュカードデータ!$B$4:$E$103,3,FALSE),"") -> 674
B103: =IFERROR(VLOOKUP($A102,フラッシュカードデータ!$B$4:$E$103,4,FALSE),"") -> 674
A104: 52 | B104: =IFERROR(VLOOKUP($A104,フラッシュカードデータ!$B$4:$E$103,3,FALSE),"") -> 675
B105: =IFERROR(VLOOKUP($A104,フラッシュカードデータ!$B$4:$E$103,4,FALSE),"") -> 675
A106: 53 | B106: =IFERROR(VLOOKUP($A106,フラッシュカードデータ!$B$4:$E$103,3,FALSE),"") -> 282
B107: =IFERROR(VLOOKUP($A106,フラッシュカードデータ!$B$4:$E$103,4,FALSE),"") -> 282
A108: 54 | B108: =IFERROR(VLOOKUP($A108,フラッシュカードデータ!$B$4:$E$103,3,FALSE),"") -> 545
B109: =IFERROR(VLOOKUP($A108,フラッシュカードデータ!$B$4:$E$103,4,FALSE),"") -> 545
A110: 55 | B110: =IFERROR(VLOOKUP($A110,フラッシュカードデータ!$B$4:$E$103,3,FALSE),"") -> 797
B111: =IFERROR(VLOOKUP($A110,フラッシュカードデータ!$B$4:$E$103,4,FALSE),"") -> 797
A112: 56 | B112: =IFERROR(VLOOKUP($A112,フラッシュカードデータ!$B$4:$E$103,3,FALSE),"") -> 683
B113: =IFERROR(VLOOKUP($A112,フラッシュカードデータ!$B$4:$E$103,4,FALSE),"") -> 683
A114: 57 | B114: =IFERROR(VLOOKUP($A114,フラッシュカードデータ!$B$4:$E$103,3,FALSE),"") -> 444
B115: =IFERROR(VLOOKUP($A114,フラッシュカードデータ!$B$4:$E$103,4,FALSE),"") -> 444
A116: 58 | B116: =IFERROR(VLOOKUP($A116,フラッシュカードデータ!$B$4:$E$103,3,FALSE),"") -> 847
B117: =IFERROR(VLOOKUP($A116,フラッシュカードデータ!$B$4:$E$103,4,FALSE),"") -> 847
A118: 59 | B118: =IFERROR(VLOOKUP($A118,フラッシュカードデータ!$B$4:$E$103,3,FALSE),"") -> 934
B119: =IFERROR(VLOOKUP($A118,フラッシュカードデータ!$B$4:$E$103,4,FALSE),"") -> 934
A120: 60 | B120: =IFERROR(VLOOKUP($A120,フラッシュカードデータ!$B$4:$E$103,3,FALSE),"") -> 196
B121: =IFERROR(VLOOKUP($A120,フラッシュカードデータ!$B$4:$E$103,4,FALSE),"") -> 196
A122: 61 | B122: =IFERROR(VLOOKUP($A122,フラッシュカードデータ!$B$4:$E$103,3,FALSE),"") -> 485
B123: =IFERROR(VLOOKUP($A122,フラッシュカードデータ!$B$4:$E$103,4,FALSE),"") -> 485
A124: 62 | B124: =IFERROR(VLOOKUP($A124,フラッシュカードデータ!$B$4:$E$103,3,FALSE),"") -> 500
B125: =IFERROR(VLOOKUP($A124,フラッシュカードデータ!$B$4:$E$103,4,FALSE),"") -> 500
A126: 63 | B126: =IFERROR(VLOOKUP($A126,フラッシュカードデータ!$B$4:$E$103,3,FALSE),"") -> 758
B127: =IFERROR(VLOOKUP($A126,フラッシュカードデータ!$B$4:$E$103,4,FALSE),"") -> 758
A128: 64 | B128: =IFERROR(VLOOKUP($A128,フラッシュカードデータ!$B$4:$E$103,3,FALSE),"") -> 756
B129: =IFERROR(VLOOKUP($A128,フラッシュカードデータ!$B$4:$E$103,4,FALSE),"") -> 756
A130: 65 | B130: =IFERROR(VLOOKUP($A130,フラッシュカードデータ!$B$4:$E$103,3,FALSE),"") -> 645
B131: =IFERROR(VLOOKUP($A130,フラッシュカードデータ!$B$4:$E$103,4,FALSE),"") -> 645
A132: 66 | B132: =IFERROR(VLOOKUP($A132,フラッシュカードデータ!$B$4:$E$103,3,FALSE),"") -> 897
B133: =IFERROR(VLOOKUP($A132,フラッシュカードデータ!$B$4:$E$103,4,FALSE),"") -> 897
A134: 67 | B134: =IFERROR(VLOOKUP($A134,フラッシュカードデータ!$B$4:$E$103,3,FALSE),"") -> 825
B135: =IFERROR(VLOOKUP($A134,フラッシュカードデータ!$B$4:$E$103,4,FALSE),"") -> 825
A136: 68 | B136: =IFERROR(VLOOKUP($A136,フラッシュカードデータ!$B$4:$E$103,3,FALSE),"") -> 555
B137: =IFERROR(VLOOKUP($A136,フラッシュカードデータ!$B$4:$E$103,4,FALSE),"") -> 555
A138: 69 | B138: =IFERROR(VLOOKUP($A138,フラッシュカードデータ!$B$4:$E$103,3,FALSE),"") -> 719
B139: =IFERROR(VLOOKUP($A138,フラッシュカードデータ!$B$4:$E$103,4,FALSE),"") -> 719
A140: 70 | B140: =IFERROR(VLOOKUP($A140,フラッシュカードデータ!$B$4:$E$103,3,FALSE),"") -> 137
B141: =IFERROR(VLOOKUP($A140,フラッシュカードデータ!$B$4:$E$103,4,FALSE),"") -> 137
A142: 71 | B142: =IFERROR(VLOOKUP($A142,フラッシュカードデータ!$B$4:$E$103,3,FALSE),"") -> 471
B143: =IFERROR(VLOOKUP($A142,フラッシュカードデータ!$B$4:$E$103,4,FALSE),"") -> 471
A144: 72 | B144: =IFERROR(VLOOKUP($A144,フラッシュカードデータ!$B$4:$E$103,3,FALSE),"") -> 844
B145: =IFERROR(VLOOKUP($A144,フラッシュカードデータ!$B$4:$E$103,4,FALSE),"") -> 844
A146: 73 | B146: =IFERROR(VLOOKUP($A146,フラッシュカードデータ!$B$4:$E$103,3,FALSE),"") -> 297
B147: =IFERROR(VLOOKUP($A146,フラッシュカードデータ!$B$4:$E$103,4,FALSE),"") -> 297
A148: 74 | B148: =IFERROR(VLOOKUP($A148,フラッシュカードデータ!$B$4:$E$103,3,FALSE),"") -> 590
B149: =IFERROR(VLOOKUP($A148,フラッシュカードデータ!$B$4:$E$103,4,FALSE),"") -> 590
A150: 75 | B150: =IFERROR(VLOOKUP($A150,フラッシュカードデータ!$B$4:$E$103,3,FALSE),"") -> 930
B151: =IFERROR(VLOOKUP($A150,フラッシュカードデータ!$B$4:$E$103,4,FALSE),"") -> 930
A152: 76 | B152: =IFERROR(VLOOKUP($A152,フラッシュカードデータ!$B$4:$E$103,3,FALSE),"") -> 855
B153: =IFERROR(VLOOKUP($A152,フラッシュカードデータ!$B$4:$E$103,4,FALSE),"") -> 855
A154: 77 | B154: =IFERROR(VLOOKUP($A154,フラッシュカードデータ!$B$4:$E$103,3,FALSE),"") -> 672
B155: =IFERROR(VLOOKUP($A154,フラッシュカードデータ!$B$4:$E$103,4,FALSE),"") -> 672
A156: 78 | B156: =IFERROR(VLOOKUP($A156,フラッシュカードデータ!$B$4:$E$103,3,FALSE),"") -> 991
B157: =IFERROR(VLOOKUP($A156,フラッシュカードデータ!$B$4:$E$103,4,FALSE),"") -> 991
A158: 79 | B158: =IFERROR(VLOOKUP($A158,フラッシュカードデータ!$B$4:$E$103,3,FALSE),"") -> 118
B159: =IFERROR(VLOOKUP($A158,フラッシュカードデータ!$B$4:$E$103,4,FALSE),"") -> 118
A160: 80 | B160: =IFERROR(VLOOKUP($A160,フラッシュカードデータ!$B$4:$E$103,3,FALSE),"") -> 414
B161: =IFERROR(VLOOKUP($A160,フラッシュカードデータ!$B$4:$E$103,4,FALSE),"") -> 414
A162: 81 | B162: =IFERROR(VLOOKUP($A162,フラッシュカードデータ!$B$4:$E$103,3,FALSE),"") -> 862
B163: =IFERROR(VLOOKUP($A162,フラッシュカードデータ!$B$4:$E$103,4,FALSE),"") -> 862
A164: 82 | B164: =IFERROR(VLOOKUP($A164,フラッシュカードデータ!$B$4:$E$103,3,FALSE),"") -> 101
B165: =IFERROR(VLOOKUP($A164,フラッシュカードデータ!$B$4:$E$103,4,FALSE),"") -> 101
A166: 83 | B166: =IFERROR(VLOOKUP($A166,フラッシュカードデータ!$B$4:$E$103,3,FALSE),"") -> 393
B167: =IFERROR(VLOOKUP($A166,フラッシュカードデータ!$B$4:$E$103,4,FALSE),"") -> 393
A168: 84 | B168: =IFERROR(VLOOKUP($A168,フラッシュカードデータ!$B$4:$E$103,3,FALSE),"") -> 203
B169: =IFERROR(VLOOKUP($A168,フラッシュカードデータ!$B$4:$E$103,4,FALSE),"") -> 203
A170: 85 | B170: =IFERROR(VLOOKUP($A170,フラッシュカードデータ!$B$4:$E$103,3,FALSE),"") -> 159
B171: =IFERROR(VLOOKUP($A170,フラッシュカードデータ!$B$4:$E$103,4,FALSE),"") -> 159
A172: 86 | B172: =IFERROR(VLOOKUP($A172,フラッシュカードデータ!$B$4:$E$103,3,FALSE),"") -> 974
B173: =IFERROR(VLOOKUP($A172,フラッシュカードデータ!$B$4:$E$103,4,FALSE),"") -> 974
A174: 87 | B174: =IFERROR(VLOOKUP($A174,フラッシュカードデータ!$B$4:$E$103,3,FALSE),"") -> 850
B175: =IFERROR(VLOOKUP($A174,フラッシュカードデータ!$B$4:$E$103,4,FALSE),"") -> 850
A176: 88 | B176: =IFERROR(VLOOKUP($A176,フラッシュカードデータ!$B$4:$E$103,3,FALSE),"") -> 151
B177: =IFERROR(VLOOKUP($A176,フラッシュカードデータ!$B$4:$E$103,4,FALSE),"") -> 151
A178: 89 | B178: =IFERROR(VLOOKUP($A178,フラッシュカードデータ!$B$4:$E$103,3,FALSE),"") -> 172
B179: =IFERROR(VLOOKUP($A178,フラッシュカードデータ!$B$4:$E$103,4,FALSE),"") -> 172
A180: 90 | B180: =IFERROR(VLOOKUP($A180,フラッシュカードデータ!$B$4:$E$103,3,FALSE),"") -> 786
B181: =IFERROR(VLOOKUP($A180,フラッシュカードデータ!$B$4:$E$103,4,FALSE),"") -> 786
A182: 91 | B182: =IFERROR(VLOOKUP($A182,フラッシュカードデータ!$B$4:$E$103,3,FALSE),"") -> 350
B183: =IFERROR(VLOOKUP($A182,フラッシュカードデータ!$B$4:$E$103,4,FALSE),"") -> 350
A184: 92 | B184: =IFERROR(VLOOKUP($A184,フラッシュカードデータ!$B$4:$E$103,3,FALSE),"") -> 882
B185: =IFERROR(VLOOKUP($A184,フラッシュカードデータ!$B$4:$E$103,4,FALSE),"") -> 882
A186: 93 | B186: =IFERROR(VLOOKUP($A186,フラッシュカードデータ!$B$4:$E$103,3,FALSE),"") -> 113
B187: =IFERROR(VLOOKUP($A186,フラッシュカードデータ!$B$4:$E$103,4,FALSE),"") -> 113
A188: 94 | B188: =IFERROR(VLOOKUP($A188,フラッシュカードデータ!$B$4:$E$103,3,FALSE),"") -> 271
B189: =IFERROR(VLOOKUP($A188,フラッシュカードデータ!$B$4:$E$103,4,FALSE),"") -> 271
A190: 95 | B190: =IFERROR(VLOOKUP($A190,フラッシュカードデータ!$B$4:$E$103,3,FALSE),"") -> 523
B191: =IFERROR(VLOOKUP($A190,フラッシュカードデータ!$B$4:$E$103,4,FALSE),"") -> 523
A192: 96 | B192: =IFERROR(VLOOKUP($A192,フラッシュカードデータ!$B$4:$E$103,3,FALSE),"") -> 809
B193: =IFERROR(VLOOKUP($A192,フラッシュカードデータ!$B$4:$E$103,4,FALSE),"") -> 809
A194: 97 | B194: =IFERROR(VLOOKUP($A194,フラッシュカードデータ!$B$4:$E$103,3,FALSE),"") -> 933
B195: =IFERROR(VLOOKUP($A194,フラッシュカードデータ!$B$4:$E$103,4,FALSE),"") -> 933
A196: 98 | B196: =IFERROR(VLOOKUP($A196,フラッシュカードデータ!$B$4:$E$103,3,FALSE),"") -> 580
B197: =IFERROR(VLOOKUP($A196,フラッシュカードデータ!$B$4:$E$103,4,FALSE),"") -> 580
A198: 99 | B198: =IFERROR(VLOOKUP($A198,フラッシュカードデータ!$B$4:$E$103,3,FALSE),"") -> 260
B199: =IFERROR(VLOOKUP($A198,フラッシュカードデータ!$B$4:$E$103,4,FALSE),"") -> 260
A200: 100 | B200: =IFERROR(VLOOKUP($A200,フラッシュカードデータ!$B$4:$E$103,3,FALSE),"") -> 504
... 1 more rows

Sheet フラッシュカード(画面表示）《指定順表示》
B1: =IF(フラッシュカードデータ!$C$2="","",フラッシュカードデータ!$C$2) -> 数字でかきましょう
A2: 1 | B2: =IF(VLOOKUP($A2,フラッシュカードデータ!$C$4:$E$103,2,FALSE)="","",VLOOKUP($A2,フラッシュカードデータ!$C$4:$E$103,2,FALSE)) -> 920 | D2: 「フラッシュカードデータ」に入力した順に表示されます。 セルの高さの調整や全面表示のＯＮ，ＯＦＦは，「フラッシュカード（画面表示）」のボタンを利用して行ってください。
B3: =IF(VLOOKUP($A2,フラッシュカードデータ!$C$4:$E$103,3,FALSE)="","",VLOOKUP($A2,フラッシュカードデータ!$C$4:$E$103,3,FALSE)) -> 920 | D3: カーソルキー（↑↓）を使って、 フラッシュカードを切り替えて 使用してください。
A4: 2 | B4: =IF(VLOOKUP($A4,フラッシュカードデータ!$C$4:$E$103,2,FALSE)="","",VLOOKUP($A4,フラッシュカードデータ!$C$4:$E$103,2,FALSE)) -> 672
B5: =IF(VLOOKUP($A4,フラッシュカードデータ!$C$4:$E$103,3,FALSE)="","",VLOOKUP($A4,フラッシュカードデータ!$C$4:$E$103,3,FALSE)) -> 672
A6: 3 | B6: =IF(VLOOKUP($A6,フラッシュカードデータ!$C$4:$E$103,2,FALSE)="","",VLOOKUP($A6,フラッシュカードデータ!$C$4:$E$103,2,FALSE)) -> 496
B7: =IF(VLOOKUP($A6,フラッシュカードデータ!$C$4:$E$103,3,FALSE)="","",VLOOKUP($A6,フラッシュカードデータ!$C$4:$E$103,3,FALSE)) -> 496
A8: 4 | B8: =IF(VLOOKUP($A8,フラッシュカードデータ!$C$4:$E$103,2,FALSE)="","",VLOOKUP($A8,フラッシュカードデータ!$C$4:$E$103,2,FALSE)) -> 545
B9: =IF(VLOOKUP($A8,フラッシュカードデータ!$C$4:$E$103,3,FALSE)="","",VLOOKUP($A8,フラッシュカードデータ!$C$4:$E$103,3,FALSE)) -> 545
A10: 5 | B10: =IF(VLOOKUP($A10,フラッシュカードデータ!$C$4:$E$103,2,FALSE)="","",VLOOKUP($A10,フラッシュカードデータ!$C$4:$E$103,2,FALSE)) -> 260
B11: =IF(VLOOKUP($A10,フラッシュカードデータ!$C$4:$E$103,3,FALSE)="","",VLOOKUP($A10,フラッシュカードデータ!$C$4:$E$103,3,FALSE)) -> 260
A12: 6 | B12: =IF(VLOOKUP($A12,フラッシュカードデータ!$C$4:$E$103,2,FALSE)="","",VLOOKUP($A12,フラッシュカードデータ!$C$4:$E$103,2,FALSE)) -> 473
B13: =IF(VLOOKUP($A12,フラッシュカードデータ!$C$4:$E$103,3,FALSE)="","",VLOOKUP($A12,フラッシュカードデータ!$C$4:$E$103,3,FALSE)) -> 473
A14: 7 | B14: =IF(VLOOKUP($A14,フラッシュカードデータ!$C$4:$E$103,2,FALSE)="","",VLOOKUP($A14,フラッシュカードデータ!$C$4:$E$103,2,FALSE)) -> 176
B15: =IF(VLOOKUP($A14,フラッシュカードデータ!$C$4:$E$103,3,FALSE)="","",VLOOKUP($A14,フラッシュカードデータ!$C$4:$E$103,3,FALSE)) -> 176
A16: 8 | B16: =IF(VLOOKUP($A16,フラッシュカードデータ!$C$4:$E$103,2,FALSE)="","",VLOOKUP($A16,フラッシュカードデータ!$C$4:$E$103,2,FALSE)) -> 850
B17: =IF(VLOOKUP($A16,フラッシュカードデータ!$C$4:$E$103,3,FALSE)="","",VLOOKUP($A16,フラッシュカードデータ!$C$4:$E$103,3,FALSE)) -> 850
A18: 9 | B18: =IF(VLOOKUP($A18,フラッシュカードデータ!$C$4:$E$103,2,FALSE)="","",VLOOKUP($A18,フラッシュカードデータ!$C$4:$E$103,2,FALSE)) -> 523
B19: =IF(VLOOKUP($A18,フラッシュカードデータ!$C$4:$E$103,3,FALSE)="","",VLOOKUP($A18,フラッシュカードデータ!$C$4:$E$103,3,FALSE)) -> 523
A20: 10 | B20: =IF(VLOOKUP($A20,フラッシュカードデータ!$C$4:$E$103,2,FALSE)="","",VLOOKUP($A20,フラッシュカードデータ!$C$4:$E$103,2,FALSE)) -> 933
B21: =IF(VLOOKUP($A20,フラッシュカードデータ!$C$4:$E$103,3,FALSE)="","",VLOOKUP($A20,フラッシュカードデータ!$C$4:$E$103,3,FALSE)) -> 933
A22: 11 | B22: =IF(VLOOKUP($A22,フラッシュカードデータ!$C$4:$E$103,2,FALSE)="","",VLOOKUP($A22,フラッシュカードデータ!$C$4:$E$103,2,FALSE)) -> 855
B23: =IF(VLOOKUP($A22,フラッシュカードデータ!$C$4:$E$103,3,FALSE)="","",VLOOKUP($A22,フラッシュカードデータ!$C$4:$E$103,3,FALSE)) -> 855
A24: 12 | B24: =IF(VLOOKUP($A24,フラッシュカードデータ!$C$4:$E$103,2,FALSE)="","",VLOOKUP($A24,フラッシュカードデータ!$C$4:$E$103,2,FALSE)) -> 674
B25: =IF(VLOOKUP($A24,フラッシュカードデータ!$C$4:$E$103,3,FALSE)="","",VLOOKUP($A24,フラッシュカードデータ!$C$4:$E$103,3,FALSE)) -> 674
A26: 13 | B26: =IF(VLOOKUP($A26,フラッシュカードデータ!$C$4:$E$103,2,FALSE)="","",VLOOKUP($A26,フラッシュカードデータ!$C$4:$E$103,2,FALSE)) -> 151
B27: =IF(VLOOKUP($A26,フラッシュカードデータ!$C$4:$E$103,3,FALSE)="","",VLOOKUP($A26,フラッシュカードデータ!$C$4:$E$103,3,FALSE)) -> 151
A28: 14 | B28: =IF(VLOOKUP($A28,フラッシュカードデータ!$C$4:$E$103,2,FALSE)="","",VLOOKUP($A28,フラッシュカードデータ!$C$4:$E$103,2,FALSE)) -> 847
B29: =IF(VLOOKUP($A28,フラッシュカードデータ!$C$4:$E$103,3,FALSE)="","",VLOOKUP($A28,フラッシュカードデータ!$C$4:$E$103,3,FALSE)) -> 847
A30: 15 | B30: =IF(VLOOKUP($A30,フラッシュカードデータ!$C$4:$E$103,2,FALSE)="","",VLOOKUP($A30,フラッシュカードデータ!$C$4:$E$103,2,FALSE)) -> 449
B31: =IF(VLOOKUP($A30,フラッシュカードデータ!$C$4:$E$103,3,FALSE)="","",VLOOKUP($A30,フラッシュカードデータ!$C$4:$E$103,3,FALSE)) -> 449
A32: 16 | B32: =IF(VLOOKUP($A32,フラッシュカードデータ!$C$4:$E$103,2,FALSE)="","",VLOOKUP($A32,フラッシュカードデータ!$C$4:$E$103,2,FALSE)) -> 797
B33: =IF(VLOOKUP($A32,フラッシュカードデータ!$C$4:$E$103,3,FALSE)="","",VLOOKUP($A32,フラッシュカードデータ!$C$4:$E$103,3,FALSE)) -> 797
A34: 17 | B34: =IF(VLOOKUP($A34,フラッシュカードデータ!$C$4:$E$103,2,FALSE)="","",VLOOKUP($A34,フラッシュカードデータ!$C$4:$E$103,2,FALSE)) -> 338
B35: =IF(VLOOKUP($A34,フラッシュカードデータ!$C$4:$E$103,3,FALSE)="","",VLOOKUP($A34,フラッシュカードデータ!$C$4:$E$103,3,FALSE)) -> 338
A36: 18 | B36: =IF(VLOOKUP($A36,フラッシュカードデータ!$C$4:$E$103,2,FALSE)="","",VLOOKUP($A36,フラッシュカードデータ!$C$4:$E$103,2,FALSE)) -> 172
B37: =IF(VLOOKUP($A36,フラッシュカードデータ!$C$4:$E$103,3,FALSE)="","",VLOOKUP($A36,フラッシュカードデータ!$C$4:$E$103,3,FALSE)) -> 172
A38: 19 | B38: =IF(VLOOKUP($A38,フラッシュカードデータ!$C$4:$E$103,2,FALSE)="","",VLOOKUP($A38,フラッシュカードデータ!$C$4:$E$103,2,FALSE)) -> 113
B39: =IF(VLOOKUP($A38,フラッシュカードデータ!$C$4:$E$103,3,FALSE)="","",VLOOKUP($A38,フラッシュカードデータ!$C$4:$E$103,3,FALSE)) -> 113
A40: 20 | B40: =IF(VLOOKUP($A40,フラッシュカードデータ!$C$4:$E$103,2,FALSE)="","",VLOOKUP($A40,フラッシュカードデータ!$C$4:$E$103,2,FALSE)) -> 756
B41: =IF(VLOOKUP($A40,フラッシュカードデータ!$C$4:$E$103,3,FALSE)="","",VLOOKUP($A40,フラッシュカードデータ!$C$4:$E$103,3,FALSE)) -> 756
A42: 21 | B42: =IF(VLOOKUP($A42,フラッシュカードデータ!$C$4:$E$103,2,FALSE)="","",VLOOKUP($A42,フラッシュカードデータ!$C$4:$E$103,2,FALSE)) -> 453
B43: =IF(VLOOKUP($A42,フラッシュカードデータ!$C$4:$E$103,3,FALSE)="","",VLOOKUP($A42,フラッシュカードデータ!$C$4:$E$103,3,FALSE)) -> 453
A44: 22 | B44: =IF(VLOOKUP($A44,フラッシュカードデータ!$C$4:$E$103,2,FALSE)="","",VLOOKUP($A44,フラッシュカードデータ!$C$4:$E$103,2,FALSE)) -> 231
B45: =IF(VLOOKUP($A44,フラッシュカードデータ!$C$4:$E$103,3,FALSE)="","",VLOOKUP($A44,フラッシュカードデータ!$C$4:$E$103,3,FALSE)) -> 231
A46: 23 | B46: =IF(VLOOKUP($A46,フラッシュカードデータ!$C$4:$E$103,2,FALSE)="","",VLOOKUP($A46,フラッシュカードデータ!$C$4:$E$103,2,FALSE)) -> 284
B47: =IF(VLOOKUP($A46,フラッシュカードデータ!$C$4:$E$103,3,FALSE)="","",VLOOKUP($A46,フラッシュカードデータ!$C$4:$E$103,3,FALSE)) -> 284
A48: 24 | B48: =IF(VLOOKUP($A48,フラッシュカードデータ!$C$4:$E$103,2,FALSE)="","",VLOOKUP($A48,フラッシュカードデータ!$C$4:$E$103,2,FALSE)) -> 930
B49: =IF(VLOOKUP($A48,フラッシュカードデータ!$C$4:$E$103,3,FALSE)="","",VLOOKUP($A48,フラッシュカードデータ!$C$4:$E$103,3,FALSE)) -> 930
A50: 25 | B50: =IF(VLOOKUP($A50,フラッシュカードデータ!$C$4:$E$103,2,FALSE)="","",VLOOKUP($A50,フラッシュカードデータ!$C$4:$E$103,2,FALSE)) -> 825
B51: =IF(VLOOKUP($A50,フラッシュカードデータ!$C$4:$E$103,3,FALSE)="","",VLOOKUP($A50,フラッシュカードデータ!$C$4:$E$103,3,FALSE)) -> 825
A52: 26 | B52: =IF(VLOOKUP($A52,フラッシュカードデータ!$C$4:$E$103,2,FALSE)="","",VLOOKUP($A52,フラッシュカードデータ!$C$4:$E$103,2,FALSE)) -> 160
B53: =IF(VLOOKUP($A52,フラッシュカードデータ!$C$4:$E$103,3,FALSE)="","",VLOOKUP($A52,フラッシュカードデータ!$C$4:$E$103,3,FALSE)) -> 160
A54: 27 | B54: =IF(VLOOKUP($A54,フラッシュカードデータ!$C$4:$E$103,2,FALSE)="","",VLOOKUP($A54,フラッシュカードデータ!$C$4:$E$103,2,FALSE)) -> 118
B55: =IF(VLOOKUP($A54,フラッシュカードデータ!$C$4:$E$103,3,FALSE)="","",VLOOKUP($A54,フラッシュカードデータ!$C$4:$E$103,3,FALSE)) -> 118
A56: 28 | B56: =IF(VLOOKUP($A56,フラッシュカードデータ!$C$4:$E$103,2,FALSE)="","",VLOOKUP($A56,フラッシュカードデータ!$C$4:$E$103,2,FALSE)) -> 921
B57: =IF(VLOOKUP($A56,フラッシュカードデータ!$C$4:$E$103,3,FALSE)="","",VLOOKUP($A56,フラッシュカードデータ!$C$4:$E$103,3,FALSE)) -> 921
A58: 29 | B58: =IF(VLOOKUP($A58,フラッシュカードデータ!$C$4:$E$103,2,FALSE)="","",VLOOKUP($A58,フラッシュカードデータ!$C$4:$E$103,2,FALSE)) -> 809
B59: =IF(VLOOKUP($A58,フラッシュカードデータ!$C$4:$E$103,3,FALSE)="","",VLOOKUP($A58,フラッシュカードデータ!$C$4:$E$103,3,FALSE)) -> 809
A60: 30 | B60: =IF(VLOOKUP($A60,フラッシュカードデータ!$C$4:$E$103,2,FALSE)="","",VLOOKUP($A60,フラッシュカードデータ!$C$4:$E$103,2,FALSE)) -> 518
B61: =IF(VLOOKUP($A60,フラッシュカードデータ!$C$4:$E$103,3,FALSE)="","",VLOOKUP($A60,フラッシュカードデータ!$C$4:$E$103,3,FALSE)) -> 518
A62: 31 | B62: =IF(VLOOKUP($A62,フラッシュカードデータ!$C$4:$E$103,2,FALSE)="","",VLOOKUP($A62,フラッシュカードデータ!$C$4:$E$103,2,FALSE)) -> 553
B63: =IF(VLOOKUP($A62,フラッシュカードデータ!$C$4:$E$103,3,FALSE)="","",VLOOKUP($A62,フラッシュカードデータ!$C$4:$E$103,3,FALSE)) -> 553
A64: 32 | B64: =IF(VLOOKUP($A64,フラッシュカードデータ!$C$4:$E$103,2,FALSE)="","",VLOOKUP($A64,フラッシュカードデータ!$C$4:$E$103,2,FALSE)) -> 882
B65: =IF(VLOOKUP($A64,フラッシュカードデータ!$C$4:$E$103,3,FALSE)="","",VLOOKUP($A64,フラッシュカードデータ!$C$4:$E$103,3,FALSE)) -> 882
A66: 33 | B66: =IF(VLOOKUP($A66,フラッシュカードデータ!$C$4:$E$103,2,FALSE)="","",VLOOKUP($A66,フラッシュカードデータ!$C$4:$E$103,2,FALSE)) -> 444
B67: =IF(VLOOKUP($A66,フラッシュカードデータ!$C$4:$E$103,3,FALSE)="","",VLOOKUP($A66,フラッシュカードデータ!$C$4:$E$103,3,FALSE)) -> 444
A68: 34 | B68: =IF(VLOOKUP($A68,フラッシュカードデータ!$C$4:$E$103,2,FALSE)="","",VLOOKUP($A68,フラッシュカードデータ!$C$4:$E$103,2,FALSE)) -> 159
B69: =IF(VLOOKUP($A68,フラッシュカードデータ!$C$4:$E$103,3,FALSE)="","",VLOOKUP($A68,フラッシュカードデータ!$C$4:$E$103,3,FALSE)) -> 159
A70: 35 | B70: =IF(VLOOKUP($A70,フラッシュカードデータ!$C$4:$E$103,2,FALSE)="","",VLOOKUP($A70,フラッシュカードデータ!$C$4:$E$103,2,FALSE)) -> 464
B71: =IF(VLOOKUP($A70,フラッシュカードデータ!$C$4:$E$103,3,FALSE)="","",VLOOKUP($A70,フラッシュカードデータ!$C$4:$E$103,3,FALSE)) -> 464
A72: 36 | B72: =IF(VLOOKUP($A72,フラッシュカードデータ!$C$4:$E$103,2,FALSE)="","",VLOOKUP($A72,フラッシュカードデータ!$C$4:$E$103,2,FALSE)) -> 741
B73: =IF(VLOOKUP($A72,フラッシュカードデータ!$C$4:$E$103,3,FALSE)="","",VLOOKUP($A72,フラッシュカードデータ!$C$4:$E$103,3,FALSE)) -> 741
A74: 37 | B74: =IF(VLOOKUP($A74,フラッシュカードデータ!$C$4:$E$103,2,FALSE)="","",VLOOKUP($A74,フラッシュカードデータ!$C$4:$E$103,2,FALSE)) -> 891
B75: =IF(VLOOKUP($A74,フラッシュカードデータ!$C$4:$E$103,3,FALSE)="","",VLOOKUP($A74,フラッシュカードデータ!$C$4:$E$103,3,FALSE)) -> 891
A76: 38 | B76: =IF(VLOOKUP($A76,フラッシュカードデータ!$C$4:$E$103,2,FALSE)="","",VLOOKUP($A76,フラッシュカードデータ!$C$4:$E$103,2,FALSE)) -> 157
B77: =IF(VLOOKUP($A76,フラッシュカードデータ!$C$4:$E$103,3,FALSE)="","",VLOOKUP($A76,フラッシュカードデータ!$C$4:$E$103,3,FALSE)) -> 157
A78: 39 | B78: =IF(VLOOKUP($A78,フラッシュカードデータ!$C$4:$E$103,2,FALSE)="","",VLOOKUP($A78,フラッシュカードデータ!$C$4:$E$103,2,FALSE)) -> 824
B79: =IF(VLOOKUP($A78,フラッシュカードデータ!$C$4:$E$103,3,FALSE)="","",VLOOKUP($A78,フラッシュカードデータ!$C$4:$E$103,3,FALSE)) -> 824
A80: 40 | B80: =IF(VLOOKUP($A80,フラッシュカードデータ!$C$4:$E$103,2,FALSE)="","",VLOOKUP($A80,フラッシュカードデータ!$C$4:$E$103,2,FALSE)) -> 786
B81: =IF(VLOOKUP($A80,フラッシュカードデータ!$C$4:$E$103,3,FALSE)="","",VLOOKUP($A80,フラッシュカードデータ!$C$4:$E$103,3,FALSE)) -> 786
A82: 41 | B82: =IF(VLOOKUP($A82,フラッシュカードデータ!$C$4:$E$103,2,FALSE)="","",VLOOKUP($A82,フラッシュカードデータ!$C$4:$E$103,2,FALSE)) -> 615
B83: =IF(VLOOKUP($A82,フラッシュカードデータ!$C$4:$E$103,3,FALSE)="","",VLOOKUP($A82,フラッシュカードデータ!$C$4:$E$103,3,FALSE)) -> 615
A84: 42 | B84: =IF(VLOOKUP($A84,フラッシュカードデータ!$C$4:$E$103,2,FALSE)="","",VLOOKUP($A84,フラッシュカードデータ!$C$4:$E$103,2,FALSE)) -> 844
B85: =IF(VLOOKUP($A84,フラッシュカードデータ!$C$4:$E$103,3,FALSE)="","",VLOOKUP($A84,フラッシュカードデータ!$C$4:$E$103,3,FALSE)) -> 844
A86: 43 | B86: =IF(VLOOKUP($A86,フラッシュカードデータ!$C$4:$E$103,2,FALSE)="","",VLOOKUP($A86,フラッシュカードデータ!$C$4:$E$103,2,FALSE)) -> 696
B87: =IF(VLOOKUP($A86,フラッシュカードデータ!$C$4:$E$103,3,FALSE)="","",VLOOKUP($A86,フラッシュカードデータ!$C$4:$E$103,3,FALSE)) -> 696
A88: 44 | B88: =IF(VLOOKUP($A88,フラッシュカードデータ!$C$4:$E$103,2,FALSE)="","",VLOOKUP($A88,フラッシュカードデータ!$C$4:$E$103,2,FALSE)) -> 683
B89: =IF(VLOOKUP($A88,フラッシュカードデータ!$C$4:$E$103,3,FALSE)="","",VLOOKUP($A88,フラッシュカードデータ!$C$4:$E$103,3,FALSE)) -> 683
A90: 45 | B90: =IF(VLOOKUP($A90,フラッシュカードデータ!$C$4:$E$103,2,FALSE)="","",VLOOKUP($A90,フラッシュカードデータ!$C$4:$E$103,2,FALSE)) -> 771
B91: =IF(VLOOKUP($A90,フラッシュカードデータ!$C$4:$E$103,3,FALSE)="","",VLOOKUP($A90,フラッシュカードデータ!$C$4:$E$103,3,FALSE)) -> 771
A92: 46 | B92: =IF(VLOOKUP($A92,フラッシュカードデータ!$C$4:$E$103,2,FALSE)="","",VLOOKUP($A92,フラッシュカードデータ!$C$4:$E$103,2,FALSE)) -> 500
B93: =IF(VLOOKUP($A92,フラッシュカードデータ!$C$4:$E$103,3,FALSE)="","",VLOOKUP($A92,フラッシュカードデータ!$C$4:$E$103,3,FALSE)) -> 500
A94: 47 | B94: =IF(VLOOKUP($A94,フラッシュカードデータ!$C$4:$E$103,2,FALSE)="","",VLOOKUP($A94,フラッシュカードデータ!$C$4:$E$103,2,FALSE)) -> 231
B95: =IF(VLOOKUP($A94,フラッシュカードデータ!$C$4:$E$103,3,FALSE)="","",VLOOKUP($A94,フラッシュカードデータ!$C$4:$E$103,3,FALSE)) -> 231
A96: 48 | B96: =IF(VLOOKUP($A96,フラッシュカードデータ!$C$4:$E$103,2,FALSE)="","",VLOOKUP($A96,フラッシュカードデータ!$C$4:$E$103,2,FALSE)) -> 349
B97: =IF(VLOOKUP($A96,フラッシュカードデータ!$C$4:$E$103,3,FALSE)="","",VLOOKUP($A96,フラッシュカードデータ!$C$4:$E$103,3,FALSE)) -> 349
A98: 49 | B98: =IF(VLOOKUP($A98,フラッシュカードデータ!$C$4:$E$103,2,FALSE)="","",VLOOKUP($A98,フラッシュカードデータ!$C$4:$E$103,2,FALSE)) -> 371
B99: =IF(VLOOKUP($A98,フラッシュカードデータ!$C$4:$E$103,3,FALSE)="","",VLOOKUP($A98,フラッシュカードデータ!$C$4:$E$103,3,FALSE)) -> 371
A100: 50 | B100: =IF(VLOOKUP($A100,フラッシュカードデータ!$C$4:$E$103,2,FALSE)="","",VLOOKUP($A100,フラッシュカードデータ!$C$4:$E$103,2,FALSE)) -> 172
B101: =IF(VLOOKUP($A100,フラッシュカードデータ!$C$4:$E$103,3,FALSE)="","",VLOOKUP($A100,フラッシュカードデータ!$C$4:$E$103,3,FALSE)) -> 172
A102: 51 | B102: =IF(VLOOKUP($A102,フラッシュカードデータ!$C$4:$E$103,2,FALSE)="","",VLOOKUP($A102,フラッシュカードデータ!$C$4:$E$103,2,FALSE)) -> 545
B103: =IF(VLOOKUP($A102,フラッシュカードデータ!$C$4:$E$103,3,FALSE)="","",VLOOKUP($A102,フラッシュカードデータ!$C$4:$E$103,3,FALSE)) -> 545
A104: 52 | B104: =IF(VLOOKUP($A104,フラッシュカードデータ!$C$4:$E$103,2,FALSE)="","",VLOOKUP($A104,フラッシュカードデータ!$C$4:$E$103,2,FALSE)) -> 617
B105: =IF(VLOOKUP($A104,フラッシュカードデータ!$C$4:$E$103,3,FALSE)="","",VLOOKUP($A104,フラッシュカードデータ!$C$4:$E$103,3,FALSE)) -> 617
A106: 53 | B106: =IF(VLOOKUP($A106,フラッシュカードデータ!$C$4:$E$103,2,FALSE)="","",VLOOKUP($A106,フラッシュカードデータ!$C$4:$E$103,2,FALSE)) -> 504
B107: =IF(VLOOKUP($A106,フラッシュカードデータ!$C$4:$E$103,3,FALSE)="","",VLOOKUP($A106,フラッシュカードデータ!$C$4:$E$103,3,FALSE)) -> 504
A108: 54 | B108: =IF(VLOOKUP($A108,フラッシュカードデータ!$C$4:$E$103,2,FALSE)="","",VLOOKUP($A108,フラッシュカードデータ!$C$4:$E$103,2,FALSE)) -> 101
B109: =IF(VLOOKUP($A108,フラッシュカードデータ!$C$4:$E$103,3,FALSE)="","",VLOOKUP($A108,フラッシュカードデータ!$C$4:$E$103,3,FALSE)) -> 101
A110: 55 | B110: =IF(VLOOKUP($A110,フラッシュカードデータ!$C$4:$E$103,2,FALSE)="","",VLOOKUP($A110,フラッシュカードデータ!$C$4:$E$103,2,FALSE)) -> 111
B111: =IF(VLOOKUP($A110,フラッシュカードデータ!$C$4:$E$103,3,FALSE)="","",VLOOKUP($A110,フラッシュカードデータ!$C$4:$E$103,3,FALSE)) -> 111
A112: 56 | B112: =IF(VLOOKUP($A112,フラッシュカードデータ!$C$4:$E$103,2,FALSE)="","",VLOOKUP($A112,フラッシュカードデータ!$C$4:$E$103,2,FALSE)) -> 129
B113: =IF(VLOOKUP($A112,フラッシュカードデータ!$C$4:$E$103,3,FALSE)="","",VLOOKUP($A112,フラッシュカードデータ!$C$4:$E$103,3,FALSE)) -> 129
A114: 57 | B114: =IF(VLOOKUP($A114,フラッシュカードデータ!$C$4:$E$103,2,FALSE)="","",VLOOKUP($A114,フラッシュカードデータ!$C$4:$E$103,2,FALSE)) -> 327
B115: =IF(VLOOKUP($A114,フラッシュカードデータ!$C$4:$E$103,3,FALSE)="","",VLOOKUP($A114,フラッシュカードデータ!$C$4:$E$103,3,FALSE)) -> 327
A116: 58 | B116: =IF(VLOOKUP($A116,フラッシュカードデータ!$C$4:$E$103,2,FALSE)="","",VLOOKUP($A116,フラッシュカードデータ!$C$4:$E$103,2,FALSE)) -> 350
B117: =IF(VLOOKUP($A116,フラッシュカードデータ!$C$4:$E$103,3,FALSE)="","",VLOOKUP($A116,フラッシュカードデータ!$C$4:$E$103,3,FALSE)) -> 350
A118: 59 | B118: =IF(VLOOKUP($A118,フラッシュカードデータ!$C$4:$E$103,2,FALSE)="","",VLOOKUP($A118,フラッシュカードデータ!$C$4:$E$103,2,FALSE)) -> 645
B119: =IF(VLOOKUP($A118,フラッシュカードデータ!$C$4:$E$103,3,FALSE)="","",VLOOKUP($A118,フラッシュカードデータ!$C$4:$E$103,3,FALSE)) -> 645
A120: 60 | B120: =IF(VLOOKUP($A120,フラッシュカードデータ!$C$4:$E$103,2,FALSE)="","",VLOOKUP($A120,フラッシュカードデータ!$C$4:$E$103,2,FALSE)) -> 608
B121: =IF(VLOOKUP($A120,フラッシュカードデータ!$C$4:$E$103,3,FALSE)="","",VLOOKUP($A120,フラッシュカードデータ!$C$4:$E$103,3,FALSE)) -> 608
A122: 61 | B122: =IF(VLOOKUP($A122,フラッシュカードデータ!$C$4:$E$103,2,FALSE)="","",VLOOKUP($A122,フラッシュカードデータ!$C$4:$E$103,2,FALSE)) -> 297
B123: =IF(VLOOKUP($A122,フラッシュカードデータ!$C$4:$E$103,3,FALSE)="","",VLOOKUP($A122,フラッシュカードデータ!$C$4:$E$103,3,FALSE)) -> 297
A124: 62 | B124: =IF(VLOOKUP($A124,フラッシュカードデータ!$C$4:$E$103,2,FALSE)="","",VLOOKUP($A124,フラッシュカードデータ!$C$4:$E$103,2,FALSE)) -> 196
B125: =IF(VLOOKUP($A124,フラッシュカードデータ!$C$4:$E$103,3,FALSE)="","",VLOOKUP($A124,フラッシュカードデータ!$C$4:$E$103,3,FALSE)) -> 196
A126: 63 | B126: =IF(VLOOKUP($A126,フラッシュカードデータ!$C$4:$E$103,2,FALSE)="","",VLOOKUP($A126,フラッシュカードデータ!$C$4:$E$103,2,FALSE)) -> 758
B127: =IF(VLOOKUP($A126,フラッシュカードデータ!$C$4:$E$103,3,FALSE)="","",VLOOKUP($A126,フラッシュカードデータ!$C$4:$E$103,3,FALSE)) -> 758
A128: 64 | B128: =IF(VLOOKUP($A128,フラッシュカードデータ!$C$4:$E$103,2,FALSE)="","",VLOOKUP($A128,フラッシュカードデータ!$C$4:$E$103,2,FALSE)) -> 580
B129: =IF(VLOOKUP($A128,フラッシュカードデータ!$C$4:$E$103,3,FALSE)="","",VLOOKUP($A128,フラッシュカードデータ!$C$4:$E$103,3,FALSE)) -> 580
A130: 65 | B130: =IF(VLOOKUP($A130,フラッシュカードデータ!$C$4:$E$103,2,FALSE)="","",VLOOKUP($A130,フラッシュカードデータ!$C$4:$E$103,2,FALSE)) -> 414
B131: =IF(VLOOKUP($A130,フラッシュカードデータ!$C$4:$E$103,3,FALSE)="","",VLOOKUP($A130,フラッシュカードデータ!$C$4:$E$103,3,FALSE)) -> 414
A132: 66 | B132: =IF(VLOOKUP($A132,フラッシュカードデータ!$C$4:$E$103,2,FALSE)="","",VLOOKUP($A132,フラッシュカードデータ!$C$4:$E$103,2,FALSE)) -> 555
B133: =IF(VLOOKUP($A132,フラッシュカードデータ!$C$4:$E$103,3,FALSE)="","",VLOOKUP($A132,フラッシュカードデータ!$C$4:$E$103,3,FALSE)) -> 555
A134: 67 | B134: =IF(VLOOKUP($A134,フラッシュカードデータ!$C$4:$E$103,2,FALSE)="","",VLOOKUP($A134,フラッシュカードデータ!$C$4:$E$103,2,FALSE)) -> 196
B135: =IF(VLOOKUP($A134,フラッシュカードデータ!$C$4:$E$103,3,FALSE)="","",VLOOKUP($A134,フラッシュカードデータ!$C$4:$E$103,3,FALSE)) -> 196
A136: 68 | B136: =IF(VLOOKUP($A136,フラッシュカードデータ!$C$4:$E$103,2,FALSE)="","",VLOOKUP($A136,フラッシュカードデータ!$C$4:$E$103,2,FALSE)) -> 338
B137: =IF(VLOOKUP($A136,フラッシュカードデータ!$C$4:$E$103,3,FALSE)="","",VLOOKUP($A136,フラッシュカードデータ!$C$4:$E$103,3,FALSE)) -> 338
A138: 69 | B138: =IF(VLOOKUP($A138,フラッシュカードデータ!$C$4:$E$103,2,FALSE)="","",VLOOKUP($A138,フラッシュカードデータ!$C$4:$E$103,2,FALSE)) -> 719
B139: =IF(VLOOKUP($A138,フラッシュカードデータ!$C$4:$E$103,3,FALSE)="","",VLOOKUP($A138,フラッシュカードデータ!$C$4:$E$103,3,FALSE)) -> 719
A140: 70 | B140: =IF(VLOOKUP($A140,フラッシュカードデータ!$C$4:$E$103,2,FALSE)="","",VLOOKUP($A140,フラッシュカードデータ!$C$4:$E$103,2,FALSE)) -> 929
B141: =IF(VLOOKUP($A140,フラッシュカードデータ!$C$4:$E$103,3,FALSE)="","",VLOOKUP($A140,フラッシュカードデータ!$C$4:$E$103,3,FALSE)) -> 929
A142: 71 | B142: =IF(VLOOKUP($A142,フラッシュカードデータ!$C$4:$E$103,2,FALSE)="","",VLOOKUP($A142,フラッシュカードデータ!$C$4:$E$103,2,FALSE)) -> 393
B143: =IF(VLOOKUP($A142,フラッシュカードデータ!$C$4:$E$103,3,FALSE)="","",VLOOKUP($A142,フラッシュカードデータ!$C$4:$E$103,3,FALSE)) -> 393
A144: 72 | B144: =IF(VLOOKUP($A144,フラッシュカードデータ!$C$4:$E$103,2,FALSE)="","",VLOOKUP($A144,フラッシュカードデータ!$C$4:$E$103,2,FALSE)) -> 897
B145: =IF(VLOOKUP($A144,フラッシュカードデータ!$C$4:$E$103,3,FALSE)="","",VLOOKUP($A144,フラッシュカードデータ!$C$4:$E$103,3,FALSE)) -> 897
A146: 73 | B146: =IF(VLOOKUP($A146,フラッシュカードデータ!$C$4:$E$103,2,FALSE)="","",VLOOKUP($A146,フラッシュカードデータ!$C$4:$E$103,2,FALSE)) -> 974
B147: =IF(VLOOKUP($A146,フラッシュカードデータ!$C$4:$E$103,3,FALSE)="","",VLOOKUP($A146,フラッシュカードデータ!$C$4:$E$103,3,FALSE)) -> 974
A148: 74 | B148: =IF(VLOOKUP($A148,フラッシュカードデータ!$C$4:$E$103,2,FALSE)="","",VLOOKUP($A148,フラッシュカードデータ!$C$4:$E$103,2,FALSE)) -> 153
B149: =IF(VLOOKUP($A148,フラッシュカードデータ!$C$4:$E$103,3,FALSE)="","",VLOOKUP($A148,フラッシュカードデータ!$C$4:$E$103,3,FALSE)) -> 153
A150: 75 | B150: =IF(VLOOKUP($A150,フラッシュカードデータ!$C$4:$E$103,2,FALSE)="","",VLOOKUP($A150,フラッシュカードデータ!$C$4:$E$103,2,FALSE)) -> 862
B151: =IF(VLOOKUP($A150,フラッシュカードデータ!$C$4:$E$103,3,FALSE)="","",VLOOKUP($A150,フラッシュカードデータ!$C$4:$E$103,3,FALSE)) -> 862
A152: 76 | B152: =IF(VLOOKUP($A152,フラッシュカードデータ!$C$4:$E$103,2,FALSE)="","",VLOOKUP($A152,フラッシュカードデータ!$C$4:$E$103,2,FALSE)) -> 590
B153: =IF(VLOOKUP($A152,フラッシュカードデータ!$C$4:$E$103,3,FALSE)="","",VLOOKUP($A152,フラッシュカードデータ!$C$4:$E$103,3,FALSE)) -> 590
A154: 77 | B154: =IF(VLOOKUP($A154,フラッシュカードデータ!$C$4:$E$103,2,FALSE)="","",VLOOKUP($A154,フラッシュカードデータ!$C$4:$E$103,2,FALSE)) -> 258
B155: =IF(VLOOKUP($A154,フラッシュカードデータ!$C$4:$E$103,3,FALSE)="","",VLOOKUP($A154,フラッシュカードデータ!$C$4:$E$103,3,FALSE)) -> 258
A156: 78 | B156: =IF(VLOOKUP($A156,フラッシュカードデータ!$C$4:$E$103,2,FALSE)="","",VLOOKUP($A156,フラッシュカードデータ!$C$4:$E$103,2,FALSE)) -> 471
B157: =IF(VLOOKUP($A156,フラッシュカードデータ!$C$4:$E$103,3,FALSE)="","",VLOOKUP($A156,フラッシュカードデータ!$C$4:$E$103,3,FALSE)) -> 471
A158: 79 | B158: =IF(VLOOKUP($A158,フラッシュカードデータ!$C$4:$E$103,2,FALSE)="","",VLOOKUP($A158,フラッシュカードデータ!$C$4:$E$103,2,FALSE)) -> 271
B159: =IF(VLOOKUP($A158,フラッシュカードデータ!$C$4:$E$103,3,FALSE)="","",VLOOKUP($A158,フラッシュカードデータ!$C$4:$E$103,3,FALSE)) -> 271
A160: 80 | B160: =IF(VLOOKUP($A160,フラッシュカードデータ!$C$4:$E$103,2,FALSE)="","",VLOOKUP($A160,フラッシュカードデータ!$C$4:$E$103,2,FALSE)) -> 991
B161: =IF(VLOOKUP($A160,フラッシュカードデータ!$C$4:$E$103,3,FALSE)="","",VLOOKUP($A160,フラッシュカードデータ!$C$4:$E$103,3,FALSE)) -> 991
A162: 81 | B162: =IF(VLOOKUP($A162,フラッシュカードデータ!$C$4:$E$103,2,FALSE)="","",VLOOKUP($A162,フラッシュカードデータ!$C$4:$E$103,2,FALSE)) -> 459
B163: =IF(VLOOKUP($A162,フラッシュカードデータ!$C$4:$E$103,3,FALSE)="","",VLOOKUP($A162,フラッシュカードデータ!$C$4:$E$103,3,FALSE)) -> 459
A164: 82 | B164: =IF(VLOOKUP($A164,フラッシュカードデータ!$C$4:$E$103,2,FALSE)="","",VLOOKUP($A164,フラッシュカードデータ!$C$4:$E$103,2,FALSE)) -> 247
B165: =IF(VLOOKUP($A164,フラッシュカードデータ!$C$4:$E$103,3,FALSE)="","",VLOOKUP($A164,フラッシュカードデータ!$C$4:$E$103,3,FALSE)) -> 247
A166: 83 | B166: =IF(VLOOKUP($A166,フラッシュカードデータ!$C$4:$E$103,2,FALSE)="","",VLOOKUP($A166,フラッシュカードデータ!$C$4:$E$103,2,FALSE)) -> 203
B167: =IF(VLOOKUP($A166,フラッシュカードデータ!$C$4:$E$103,3,FALSE)="","",VLOOKUP($A166,フラッシュカードデータ!$C$4:$E$103,3,FALSE)) -> 203
A168: 84 | B168: =IF(VLOOKUP($A168,フラッシュカードデータ!$C$4:$E$103,2,FALSE)="","",VLOOKUP($A168,フラッシュカードデータ!$C$4:$E$103,2,FALSE)) -> 282
B169: =IF(VLOOKUP($A168,フラッシュカードデータ!$C$4:$E$103,3,FALSE)="","",VLOOKUP($A168,フラッシュカードデータ!$C$4:$E$103,3,FALSE)) -> 282
A170: 85 | B170: =IF(VLOOKUP($A170,フラッシュカードデータ!$C$4:$E$103,2,FALSE)="","",VLOOKUP($A170,フラッシュカードデータ!$C$4:$E$103,2,FALSE)) -> 485
B171: =IF(VLOOKUP($A170,フラッシュカードデータ!$C$4:$E$103,3,FALSE)="","",VLOOKUP($A170,フラッシュカードデータ!$C$4:$E$103,3,FALSE)) -> 485
A172: 86 | B172: =IF(VLOOKUP($A172,フラッシュカードデータ!$C$4:$E$103,2,FALSE)="","",VLOOKUP($A172,フラッシュカードデータ!$C$4:$E$103,2,FALSE)) -> 143
B173: =IF(VLOOKUP($A172,フラッシュカードデータ!$C$4:$E$103,3,FALSE)="","",VLOOKUP($A172,フラッシュカードデータ!$C$4:$E$103,3,FALSE)) -> 143
A174: 87 | B174: =IF(VLOOKUP($A174,フラッシュカードデータ!$C$4:$E$103,2,FALSE)="","",VLOOKUP($A174,フラッシュカードデータ!$C$4:$E$103,2,FALSE)) -> 137
B175: =IF(VLOOKUP($A174,フラッシュカードデータ!$C$4:$E$103,3,FALSE)="","",VLOOKUP($A174,フラッシュカードデータ!$C$4:$E$103,3,FALSE)) -> 137
A176: 88 | B176: =IF(VLOOKUP($A176,フラッシュカードデータ!$C$4:$E$103,2,FALSE)="","",VLOOKUP($A176,フラッシュカードデータ!$C$4:$E$103,2,FALSE)) -> 880
B177: =IF(VLOOKUP($A176,フラッシュカードデータ!$C$4:$E$103,3,FALSE)="","",VLOOKUP($A176,フラッシュカードデータ!$C$4:$E$103,3,FALSE)) -> 880
A178: 89 | B178: =IF(VLOOKUP($A178,フラッシュカードデータ!$C$4:$E$103,2,FALSE)="","",VLOOKUP($A178,フラッシュカードデータ!$C$4:$E$103,2,FALSE)) -> 194
B179: =IF(VLOOKUP($A178,フラッシュカードデータ!$C$4:$E$103,3,FALSE)="","",VLOOKUP($A178,フラッシュカードデータ!$C$4:$E$103,3,FALSE)) -> 194
A180: 90 | B180: =IF(VLOOKUP($A180,フラッシュカードデータ!$C$4:$E$103,2,FALSE)="","",VLOOKUP($A180,フラッシュカードデータ!$C$4:$E$103,2,FALSE)) -> 838
B181: =IF(VLOOKUP($A180,フラッシュカードデータ!$C$4:$E$103,3,FALSE)="","",VLOOKUP($A180,フラッシュカードデータ!$C$4:$E$103,3,FALSE)) -> 838
A182: 91 | B182: =IF(VLOOKUP($A182,フラッシュカードデータ!$C$4:$E$103,2,FALSE)="","",VLOOKUP($A182,フラッシュカードデータ!$C$4:$E$103,2,FALSE)) -> 202
B183: =IF(VLOOKUP($A182,フラッシュカードデータ!$C$4:$E$103,3,FALSE)="","",VLOOKUP($A182,フラッシュカードデータ!$C$4:$E$103,3,FALSE)) -> 202
A184: 92 | B184: =IF(VLOOKUP($A184,フラッシュカードデータ!$C$4:$E$103,2,FALSE)="","",VLOOKUP($A184,フラッシュカードデータ!$C$4:$E$103,2,FALSE)) -> 664
B185: =IF(VLOOKUP($A184,フラッシュカードデータ!$C$4:$E$103,3,FALSE)="","",VLOOKUP($A184,フラッシュカードデータ!$C$4:$E$103,3,FALSE)) -> 664
A186: 93 | B186: =IF(VLOOKUP($A186,フラッシュカードデータ!$C$4:$E$103,2,FALSE)="","",VLOOKUP($A186,フラッシュカードデータ!$C$4:$E$103,2,FALSE)) -> 745
B187: =IF(VLOOKUP($A186,フラッシュカードデータ!$C$4:$E$103,3,FALSE)="","",VLOOKUP($A186,フラッシュカードデータ!$C$4:$E$103,3,FALSE)) -> 745
A188: 94 | B188: =IF(VLOOKUP($A188,フラッシュカードデータ!$C$4:$E$103,2,FALSE)="","",VLOOKUP($A188,フラッシュカードデータ!$C$4:$E$103,2,FALSE)) -> 819
B189: =IF(VLOOKUP($A188,フラッシュカードデータ!$C$4:$E$103,3,FALSE)="","",VLOOKUP($A188,フラッシュカードデータ!$C$4:$E$103,3,FALSE)) -> 819
A190: 95 | B190: =IF(VLOOKUP($A190,フラッシュカードデータ!$C$4:$E$103,2,FALSE)="","",VLOOKUP($A190,フラッシュカードデータ!$C$4:$E$103,2,FALSE)) -> 989
B191: =IF(VLOOKUP($A190,フラッシュカードデータ!$C$4:$E$103,3,FALSE)="","",VLOOKUP($A190,フラッシュカードデータ!$C$4:$E$103,3,FALSE)) -> 989
A192: 96 | B192: =IF(VLOOKUP($A192,フラッシュカードデータ!$C$4:$E$103,2,FALSE)="","",VLOOKUP($A192,フラッシュカードデータ!$C$4:$E$103,2,FALSE)) -> 675
B193: =IF(VLOOKUP($A192,フラッシュカードデータ!$C$4:$E$103,3,FALSE)="","",VLOOKUP($A192,フラッシュカードデータ!$C$4:$E$103,3,FALSE)) -> 675
A194: 97 | B194: =IF(VLOOKUP($A194,フラッシュカードデータ!$C$4:$E$103,2,FALSE)="","",VLOOKUP($A194,フラッシュカードデータ!$C$4:$E$103,2,FALSE)) -> 934
B195: =IF(VLOOKUP($A194,フラッシュカードデータ!$C$4:$E$103,3,FALSE)="","",VLOOKUP($A194,フラッシュカードデータ!$C$4:$E$103,3,FALSE)) -> 934
A196: 98 | B196: =IF(VLOOKUP($A196,フラッシュカードデータ!$C$4:$E$103,2,FALSE)="","",VLOOKUP($A196,フラッシュカードデータ!$C$4:$E$103,2,FALSE)) -> 643
B197: =IF(VLOOKUP($A196,フラッシュカードデータ!$C$4:$E$103,3,FALSE)="","",VLOOKUP($A196,フラッシュカードデータ!$C$4:$E$103,3,FALSE)) -> 643
A198: 99 | B198: =IF(VLOOKUP($A198,フラッシュカードデータ!$C$4:$E$103,2,FALSE)="","",VLOOKUP($A198,フラッシュカードデータ!$C$4:$E$103,2,FALSE)) -> 605
B199: =IF(VLOOKUP($A198,フラッシュカードデータ!$C$4:$E$103,3,FALSE)="","",VLOOKUP($A198,フラッシュカードデータ!$C$4:$E$103,3,FALSE)) -> 605
A200: 100 | B200: =IF(VLOOKUP($A200,フラッシュカードデータ!$C$4:$E$103,2,FALSE)="","",VLOOKUP($A200,フラッシュカードデータ!$C$4:$E$103,2,FALSE)) -> 942
... 1 more rows

Sheet フラッシュカード(横長印刷用）
B1: =IF(フラッシュカードデータ!$C$2="","",フラッシュカードデータ!$C$2) -> 数字でかきましょう
A2: 1 | B2: =IF(VLOOKUP($A2,フラッシュカードデータ!$C$4:$E$103,2,FALSE)="","",VLOOKUP($A2,フラッシュカードデータ!$C$4:$E$103,2,FALSE)) -> 920 | D2: A4用紙（横向き)に 印刷されます。
B3: =IF(VLOOKUP($A2,フラッシュカードデータ!$C$4:$E$103,3,FALSE)="","",VLOOKUP($A2,フラッシュカードデータ!$C$4:$E$103,3,FALSE)) -> 920 | D3: 真ん中で折って、 貼り合わせると フラッシュカードが できあがります。
A4: 2 | B4: =IF(VLOOKUP($A4,フラッシュカードデータ!$C$4:$E$103,2,FALSE)="","",VLOOKUP($A4,フラッシュカードデータ!$C$4:$E$103,2,FALSE)) -> 672
B5: =IF(VLOOKUP($A4,フラッシュカードデータ!$C$4:$E$103,3,FALSE)="","",VLOOKUP($A4,フラッシュカードデータ!$C$4:$E$103,3,FALSE)) -> 672
A6: 3 | B6: =IF(VLOOKUP($A6,フラッシュカードデータ!$C$4:$E$103,2,FALSE)="","",VLOOKUP($A6,フラッシュカードデータ!$C$4:$E$103,2,FALSE)) -> 496
B7: =IF(VLOOKUP($A6,フラッシュカードデータ!$C$4:$E$103,3,FALSE)="","",VLOOKUP($A6,フラッシュカードデータ!$C$4:$E$103,3,FALSE)) -> 496
A8: 4 | B8: =IF(VLOOKUP($A8,フラッシュカードデータ!$C$4:$E$103,2,FALSE)="","",VLOOKUP($A8,フラッシュカードデータ!$C$4:$E$103,2,FALSE)) -> 545
B9: =IF(VLOOKUP($A8,フラッシュカードデータ!$C$4:$E$103,3,FALSE)="","",VLOOKUP($A8,フラッシュカードデータ!$C$4:$E$103,3,FALSE)) -> 545
A10: 5 | B10: =IF(VLOOKUP($A10,フラッシュカードデータ!$C$4:$E$103,2,FALSE)="","",VLOOKUP($A10,フラッシュカードデータ!$C$4:$E$103,2,FALSE)) -> 260
B11: =IF(VLOOKUP($A10,フラッシュカードデータ!$C$4:$E$103,3,FALSE)="","",VLOOKUP($A10,フラッシュカードデータ!$C$4:$E$103,3,FALSE)) -> 260
A12: 6 | B12: =IF(VLOOKUP($A12,フラッシュカードデータ!$C$4:$E$103,2,FALSE)="","",VLOOKUP($A12,フラッシュカードデータ!$C$4:$E$103,2,FALSE)) -> 473
B13: =IF(VLOOKUP($A12,フラッシュカードデータ!$C$4:$E$103,3,FALSE)="","",VLOOKUP($A12,フラッシュカードデータ!$C$4:$E$103,3,FALSE)) -> 473
A14: 7 | B14: =IF(VLOOKUP($A14,フラッシュカードデータ!$C$4:$E$103,2,FALSE)="","",VLOOKUP($A14,フラッシュカードデータ!$C$4:$E$103,2,FALSE)) -> 176
B15: =IF(VLOOKUP($A14,フラッシュカードデータ!$C$4:$E$103,3,FALSE)="","",VLOOKUP($A14,フラッシュカードデータ!$C$4:$E$103,3,FALSE)) -> 176
A16: 8 | B16: =IF(VLOOKUP($A16,フラッシュカードデータ!$C$4:$E$103,2,FALSE)="","",VLOOKUP($A16,フラッシュカードデータ!$C$4:$E$103,2,FALSE)) -> 850
B17: =IF(VLOOKUP($A16,フラッシュカードデータ!$C$4:$E$103,3,FALSE)="","",VLOOKUP($A16,フラッシュカードデータ!$C$4:$E$103,3,FALSE)) -> 850
A18: 9 | B18: =IF(VLOOKUP($A18,フラッシュカードデータ!$C$4:$E$103,2,FALSE)="","",VLOOKUP($A18,フラッシュカードデータ!$C$4:$E$103,2,FALSE)) -> 523
B19: =IF(VLOOKUP($A18,フラッシュカードデータ!$C$4:$E$103,3,FALSE)="","",VLOOKUP($A18,フラッシュカードデータ!$C$4:$E$103,3,FALSE)) -> 523
A20: 10 | B20: =IF(VLOOKUP($A20,フラッシュカードデータ!$C$4:$E$103,2,FALSE)="","",VLOOKUP($A20,フラッシュカードデータ!$C$4:$E$103,2,FALSE)) -> 933
B21: =IF(VLOOKUP($A20,フラッシュカードデータ!$C$4:$E$103,3,FALSE)="","",VLOOKUP($A20,フラッシュカードデータ!$C$4:$E$103,3,FALSE)) -> 933
A22: 11 | B22: =IF(VLOOKUP($A22,フラッシュカードデータ!$C$4:$E$103,2,FALSE)="","",VLOOKUP($A22,フラッシュカードデータ!$C$4:$E$103,2,FALSE)) -> 855
B23: =IF(VLOOKUP($A22,フラッシュカードデータ!$C$4:$E$103,3,FALSE)="","",VLOOKUP($A22,フラッシュカードデータ!$C$4:$E$103,3,FALSE)) -> 855
A24: 12 | B24: =IF(VLOOKUP($A24,フラッシュカードデータ!$C$4:$E$103,2,FALSE)="","",VLOOKUP($A24,フラッシュカードデータ!$C$4:$E$103,2,FALSE)) -> 674
B25: =IF(VLOOKUP($A24,フラッシュカードデータ!$C$4:$E$103,3,FALSE)="","",VLOOKUP($A24,フラッシュカードデータ!$C$4:$E$103,3,FALSE)) -> 674
A26: 13 | B26: =IF(VLOOKUP($A26,フラッシュカードデータ!$C$4:$E$103,2,FALSE)="","",VLOOKUP($A26,フラッシュカードデータ!$C$4:$E$103,2,FALSE)) -> 151
B27: =IF(VLOOKUP($A26,フラッシュカードデータ!$C$4:$E$103,3,FALSE)="","",VLOOKUP($A26,フラッシュカードデータ!$C$4:$E$103,3,FALSE)) -> 151
A28: 14 | B28: =IF(VLOOKUP($A28,フラッシュカードデータ!$C$4:$E$103,2,FALSE)="","",VLOOKUP($A28,フラッシュカードデータ!$C$4:$E$103,2,FALSE)) -> 847
B29: =IF(VLOOKUP($A28,フラッシュカードデータ!$C$4:$E$103,3,FALSE)="","",VLOOKUP($A28,フラッシュカードデータ!$C$4:$E$103,3,FALSE)) -> 847
A30: 15 | B30: =IF(VLOOKUP($A30,フラッシュカードデータ!$C$4:$E$103,2,FALSE)="","",VLOOKUP($A30,フラッシュカードデータ!$C$4:$E$103,2,FALSE)) -> 449
B31: =IF(VLOOKUP($A30,フラッシュカードデータ!$C$4:$E$103,3,FALSE)="","",VLOOKUP($A30,フラッシュカードデータ!$C$4:$E$103,3,FALSE)) -> 449
A32: 16 | B32: =IF(VLOOKUP($A32,フラッシュカードデータ!$C$4:$E$103,2,FALSE)="","",VLOOKUP($A32,フラッシュカードデータ!$C$4:$E$103,2,FALSE)) -> 797
B33: =IF(VLOOKUP($A32,フラッシュカードデータ!$C$4:$E$103,3,FALSE)="","",VLOOKUP($A32,フラッシュカードデータ!$C$4:$E$103,3,FALSE)) -> 797
A34: 17 | B34: =IF(VLOOKUP($A34,フラッシュカードデータ!$C$4:$E$103,2,FALSE)="","",VLOOKUP($A34,フラッシュカードデータ!$C$4:$E$103,2,FALSE)) -> 338
B35: =IF(VLOOKUP($A34,フラッシュカードデータ!$C$4:$E$103,3,FALSE)="","",VLOOKUP($A34,フラッシュカードデータ!$C$4:$E$103,3,FALSE)) -> 338
A36: 18 | B36: =IF(VLOOKUP($A36,フラッシュカードデータ!$C$4:$E$103,2,FALSE)="","",VLOOKUP($A36,フラッシュカードデータ!$C$4:$E$103,2,FALSE)) -> 172
B37: =IF(VLOOKUP($A36,フラッシュカードデータ!$C$4:$E$103,3,FALSE)="","",VLOOKUP($A36,フラッシュカードデータ!$C$4:$E$103,3,FALSE)) -> 172
A38: 19 | B38: =IF(VLOOKUP($A38,フラッシュカードデータ!$C$4:$E$103,2,FALSE)="","",VLOOKUP($A38,フラッシュカードデータ!$C$4:$E$103,2,FALSE)) -> 113
B39: =IF(VLOOKUP($A38,フラッシュカードデータ!$C$4:$E$103,3,FALSE)="","",VLOOKUP($A38,フラッシュカードデータ!$C$4:$E$103,3,FALSE)) -> 113
A40: 20 | B40: =IF(VLOOKUP($A40,フラッシュカードデータ!$C$4:$E$103,2,FALSE)="","",VLOOKUP($A40,フラッシュカードデータ!$C$4:$E$103,2,FALSE)) -> 756
B41: =IF(VLOOKUP($A40,フラッシュカードデータ!$C$4:$E$103,3,FALSE)="","",VLOOKUP($A40,フラッシュカードデータ!$C$4:$E$103,3,FALSE)) -> 756
A42: 21 | B42: =IF(VLOOKUP($A42,フラッシュカードデータ!$C$4:$E$103,2,FALSE)="","",VLOOKUP($A42,フラッシュカードデータ!$C$4:$E$103,2,FALSE)) -> 453
B43: =IF(VLOOKUP($A42,フラッシュカードデータ!$C$4:$E$103,3,FALSE)="","",VLOOKUP($A42,フラッシュカードデータ!$C$4:$E$103,3,FALSE)) -> 453
A44: 22 | B44: =IF(VLOOKUP($A44,フラッシュカードデータ!$C$4:$E$103,2,FALSE)="","",VLOOKUP($A44,フラッシュカードデータ!$C$4:$E$103,2,FALSE)) -> 231
B45: =IF(VLOOKUP($A44,フラッシュカードデータ!$C$4:$E$103,3,FALSE)="","",VLOOKUP($A44,フラッシュカードデータ!$C$4:$E$103,3,FALSE)) -> 231
A46: 23 | B46: =IF(VLOOKUP($A46,フラッシュカードデータ!$C$4:$E$103,2,FALSE)="","",VLOOKUP($A46,フラッシュカードデータ!$C$4:$E$103,2,FALSE)) -> 284
B47: =IF(VLOOKUP($A46,フラッシュカードデータ!$C$4:$E$103,3,FALSE)="","",VLOOKUP($A46,フラッシュカードデータ!$C$4:$E$103,3,FALSE)) -> 284
A48: 24 | B48: =IF(VLOOKUP($A48,フラッシュカードデータ!$C$4:$E$103,2,FALSE)="","",VLOOKUP($A48,フラッシュカードデータ!$C$4:$E$103,2,FALSE)) -> 930
B49: =IF(VLOOKUP($A48,フラッシュカードデータ!$C$4:$E$103,3,FALSE)="","",VLOOKUP($A48,フラッシュカードデータ!$C$4:$E$103,3,FALSE)) -> 930
A50: 25 | B50: =IF(VLOOKUP($A50,フラッシュカードデータ!$C$4:$E$103,2,FALSE)="","",VLOOKUP($A50,フラッシュカードデータ!$C$4:$E$103,2,FALSE)) -> 825
B51: =IF(VLOOKUP($A50,フラッシュカードデータ!$C$4:$E$103,3,FALSE)="","",VLOOKUP($A50,フラッシュカードデータ!$C$4:$E$103,3,FALSE)) -> 825
A52: 26 | B52: =IF(VLOOKUP($A52,フラッシュカードデータ!$C$4:$E$103,2,FALSE)="","",VLOOKUP($A52,フラッシュカードデータ!$C$4:$E$103,2,FALSE)) -> 160
B53: =IF(VLOOKUP($A52,フラッシュカードデータ!$C$4:$E$103,3,FALSE)="","",VLOOKUP($A52,フラッシュカードデータ!$C$4:$E$103,3,FALSE)) -> 160
A54: 27 | B54: =IF(VLOOKUP($A54,フラッシュカードデータ!$C$4:$E$103,2,FALSE)="","",VLOOKUP($A54,フラッシュカードデータ!$C$4:$E$103,2,FALSE)) -> 118
B55: =IF(VLOOKUP($A54,フラッシュカードデータ!$C$4:$E$103,3,FALSE)="","",VLOOKUP($A54,フラッシュカードデータ!$C$4:$E$103,3,FALSE)) -> 118
A56: 28 | B56: =IF(VLOOKUP($A56,フラッシュカードデータ!$C$4:$E$103,2,FALSE)="","",VLOOKUP($A56,フラッシュカードデータ!$C$4:$E$103,2,FALSE)) -> 921
B57: =IF(VLOOKUP($A56,フラッシュカードデータ!$C$4:$E$103,3,FALSE)="","",VLOOKUP($A56,フラッシュカードデータ!$C$4:$E$103,3,FALSE)) -> 921
A58: 29 | B58: =IF(VLOOKUP($A58,フラッシュカードデータ!$C$4:$E$103,2,FALSE)="","",VLOOKUP($A58,フラッシュカードデータ!$C$4:$E$103,2,FALSE)) -> 809
B59: =IF(VLOOKUP($A58,フラッシュカードデータ!$C$4:$E$103,3,FALSE)="","",VLOOKUP($A58,フラッシュカードデータ!$C$4:$E$103,3,FALSE)) -> 809
A60: 30 | B60: =IF(VLOOKUP($A60,フラッシュカードデータ!$C$4:$E$103,2,FALSE)="","",VLOOKUP($A60,フラッシュカードデータ!$C$4:$E$103,2,FALSE)) -> 518
B61: =IF(VLOOKUP($A60,フラッシュカードデータ!$C$4:$E$103,3,FALSE)="","",VLOOKUP($A60,フラッシュカードデータ!$C$4:$E$103,3,FALSE)) -> 518
A62: 31 | B62: =IF(VLOOKUP($A62,フラッシュカードデータ!$C$4:$E$103,2,FALSE)="","",VLOOKUP($A62,フラッシュカードデータ!$C$4:$E$103,2,FALSE)) -> 553
B63: =IF(VLOOKUP($A62,フラッシュカードデータ!$C$4:$E$103,3,FALSE)="","",VLOOKUP($A62,フラッシュカードデータ!$C$4:$E$103,3,FALSE)) -> 553
A64: 32 | B64: =IF(VLOOKUP($A64,フラッシュカードデータ!$C$4:$E$103,2,FALSE)="","",VLOOKUP($A64,フラッシュカードデータ!$C$4:$E$103,2,FALSE)) -> 882
B65: =IF(VLOOKUP($A64,フラッシュカードデータ!$C$4:$E$103,3,FALSE)="","",VLOOKUP($A64,フラッシュカードデータ!$C$4:$E$103,3,FALSE)) -> 882
A66: 33 | B66: =IF(VLOOKUP($A66,フラッシュカードデータ!$C$4:$E$103,2,FALSE)="","",VLOOKUP($A66,フラッシュカードデータ!$C$4:$E$103,2,FALSE)) -> 444
B67: =IF(VLOOKUP($A66,フラッシュカードデータ!$C$4:$E$103,3,FALSE)="","",VLOOKUP($A66,フラッシュカードデータ!$C$4:$E$103,3,FALSE)) -> 444
A68: 34 | B68: =IF(VLOOKUP($A68,フラッシュカードデータ!$C$4:$E$103,2,FALSE)="","",VLOOKUP($A68,フラッシュカードデータ!$C$4:$E$103,2,FALSE)) -> 159
B69: =IF(VLOOKUP($A68,フラッシュカードデータ!$C$4:$E$103,3,FALSE)="","",VLOOKUP($A68,フラッシュカードデータ!$C$4:$E$103,3,FALSE)) -> 159
A70: 35 | B70: =IF(VLOOKUP($A70,フラッシュカードデータ!$C$4:$E$103,2,FALSE)="","",VLOOKUP($A70,フラッシュカードデータ!$C$4:$E$103,2,FALSE)) -> 464
B71: =IF(VLOOKUP($A70,フラッシュカードデータ!$C$4:$E$103,3,FALSE)="","",VLOOKUP($A70,フラッシュカードデータ!$C$4:$E$103,3,FALSE)) -> 464
A72: 36 | B72: =IF(VLOOKUP($A72,フラッシュカードデータ!$C$4:$E$103,2,FALSE)="","",VLOOKUP($A72,フラッシュカードデータ!$C$4:$E$103,2,FALSE)) -> 741
B73: =IF(VLOOKUP($A72,フラッシュカードデータ!$C$4:$E$103,3,FALSE)="","",VLOOKUP($A72,フラッシュカードデータ!$C$4:$E$103,3,FALSE)) -> 741
A74: 37 | B74: =IF(VLOOKUP($A74,フラッシュカードデータ!$C$4:$E$103,2,FALSE)="","",VLOOKUP($A74,フラッシュカードデータ!$C$4:$E$103,2,FALSE)) -> 891
B75: =IF(VLOOKUP($A74,フラッシュカードデータ!$C$4:$E$103,3,FALSE)="","",VLOOKUP($A74,フラッシュカードデータ!$C$4:$E$103,3,FALSE)) -> 891
A76: 38 | B76: =IF(VLOOKUP($A76,フラッシュカードデータ!$C$4:$E$103,2,FALSE)="","",VLOOKUP($A76,フラッシュカードデータ!$C$4:$E$103,2,FALSE)) -> 157
B77: =IF(VLOOKUP($A76,フラッシュカードデータ!$C$4:$E$103,3,FALSE)="","",VLOOKUP($A76,フラッシュカードデータ!$C$4:$E$103,3,FALSE)) -> 157
A78: 39 | B78: =IF(VLOOKUP($A78,フラッシュカードデータ!$C$4:$E$103,2,FALSE)="","",VLOOKUP($A78,フラッシュカードデータ!$C$4:$E$103,2,FALSE)) -> 824
B79: =IF(VLOOKUP($A78,フラッシュカードデータ!$C$4:$E$103,3,FALSE)="","",VLOOKUP($A78,フラッシュカードデータ!$C$4:$E$103,3,FALSE)) -> 824
A80: 40 | B80: =IF(VLOOKUP($A80,フラッシュカードデータ!$C$4:$E$103,2,FALSE)="","",VLOOKUP($A80,フラッシュカードデータ!$C$4:$E$103,2,FALSE)) -> 786
B81: =IF(VLOOKUP($A80,フラッシュカードデータ!$C$4:$E$103,3,FALSE)="","",VLOOKUP($A80,フラッシュカードデータ!$C$4:$E$103,3,FALSE)) -> 786
A82: 41 | B82: =IF(VLOOKUP($A82,フラッシュカードデータ!$C$4:$E$103,2,FALSE)="","",VLOOKUP($A82,フラッシュカードデータ!$C$4:$E$103,2,FALSE)) -> 615
B83: =IF(VLOOKUP($A82,フラッシュカードデータ!$C$4:$E$103,3,FALSE)="","",VLOOKUP($A82,フラッシュカードデータ!$C$4:$E$103,3,FALSE)) -> 615
A84: 42 | B84: =IF(VLOOKUP($A84,フラッシュカードデータ!$C$4:$E$103,2,FALSE)="","",VLOOKUP($A84,フラッシュカードデータ!$C$4:$E$103,2,FALSE)) -> 844
B85: =IF(VLOOKUP($A84,フラッシュカードデータ!$C$4:$E$103,3,FALSE)="","",VLOOKUP($A84,フラッシュカードデータ!$C$4:$E$103,3,FALSE)) -> 844
A86: 43 | B86: =IF(VLOOKUP($A86,フラッシュカードデータ!$C$4:$E$103,2,FALSE)="","",VLOOKUP($A86,フラッシュカードデータ!$C$4:$E$103,2,FALSE)) -> 696
B87: =IF(VLOOKUP($A86,フラッシュカードデータ!$C$4:$E$103,3,FALSE)="","",VLOOKUP($A86,フラッシュカードデータ!$C$4:$E$103,3,FALSE)) -> 696
A88: 44 | B88: =IF(VLOOKUP($A88,フラッシュカードデータ!$C$4:$E$103,2,FALSE)="","",VLOOKUP($A88,フラッシュカードデータ!$C$4:$E$103,2,FALSE)) -> 683
B89: =IF(VLOOKUP($A88,フラッシュカードデータ!$C$4:$E$103,3,FALSE)="","",VLOOKUP($A88,フラッシュカードデータ!$C$4:$E$103,3,FALSE)) -> 683
A90: 45 | B90: =IF(VLOOKUP($A90,フラッシュカードデータ!$C$4:$E$103,2,FALSE)="","",VLOOKUP($A90,フラッシュカードデータ!$C$4:$E$103,2,FALSE)) -> 771
B91: =IF(VLOOKUP($A90,フラッシュカードデータ!$C$4:$E$103,3,FALSE)="","",VLOOKUP($A90,フラッシュカードデータ!$C$4:$E$103,3,FALSE)) -> 771
A92: 46 | B92: =IF(VLOOKUP($A92,フラッシュカードデータ!$C$4:$E$103,2,FALSE)="","",VLOOKUP($A92,フラッシュカードデータ!$C$4:$E$103,2,FALSE)) -> 500
B93: =IF(VLOOKUP($A92,フラッシュカードデータ!$C$4:$E$103,3,FALSE)="","",VLOOKUP($A92,フラッシュカードデータ!$C$4:$E$103,3,FALSE)) -> 500
A94: 47 | B94: =IF(VLOOKUP($A94,フラッシュカードデータ!$C$4:$E$103,2,FALSE)="","",VLOOKUP($A94,フラッシュカードデータ!$C$4:$E$103,2,FALSE)) -> 231
B95: =IF(VLOOKUP($A94,フラッシュカードデータ!$C$4:$E$103,3,FALSE)="","",VLOOKUP($A94,フラッシュカードデータ!$C$4:$E$103,3,FALSE)) -> 231
A96: 48 | B96: =IF(VLOOKUP($A96,フラッシュカードデータ!$C$4:$E$103,2,FALSE)="","",VLOOKUP($A96,フラッシュカードデータ!$C$4:$E$103,2,FALSE)) -> 349
B97: =IF(VLOOKUP($A96,フラッシュカードデータ!$C$4:$E$103,3,FALSE)="","",VLOOKUP($A96,フラッシュカードデータ!$C$4:$E$103,3,FALSE)) -> 349
A98: 49 | B98: =IF(VLOOKUP($A98,フラッシュカードデータ!$C$4:$E$103,2,FALSE)="","",VLOOKUP($A98,フラッシュカードデータ!$C$4:$E$103,2,FALSE)) -> 371
B99: =IF(VLOOKUP($A98,フラッシュカードデータ!$C$4:$E$103,3,FALSE)="","",VLOOKUP($A98,フラッシュカードデータ!$C$4:$E$103,3,FALSE)) -> 371
A100: 50 | B100: =IF(VLOOKUP($A100,フラッシュカードデータ!$C$4:$E$103,2,FALSE)="","",VLOOKUP($A100,フラッシュカードデータ!$C$4:$E$103,2,FALSE)) -> 172
B101: =IF(VLOOKUP($A100,フラッシュカードデータ!$C$4:$E$103,3,FALSE)="","",VLOOKUP($A100,フラッシュカードデータ!$C$4:$E$103,3,FALSE)) -> 172
A102: 51 | B102: =IF(VLOOKUP($A102,フラッシュカードデータ!$C$4:$E$103,2,FALSE)="","",VLOOKUP($A102,フラッシュカードデータ!$C$4:$E$103,2,FALSE)) -> 545
B103: =IF(VLOOKUP($A102,フラッシュカードデータ!$C$4:$E$103,3,FALSE)="","",VLOOKUP($A102,フラッシュカードデータ!$C$4:$E$103,3,FALSE)) -> 545
A104: 52 | B104: =IF(VLOOKUP($A104,フラッシュカードデータ!$C$4:$E$103,2,FALSE)="","",VLOOKUP($A104,フラッシュカードデータ!$C$4:$E$103,2,FALSE)) -> 617
B105: =IF(VLOOKUP($A104,フラッシュカードデータ!$C$4:$E$103,3,FALSE)="","",VLOOKUP($A104,フラッシュカードデータ!$C$4:$E$103,3,FALSE)) -> 617
A106: 53 | B106: =IF(VLOOKUP($A106,フラッシュカードデータ!$C$4:$E$103,2,FALSE)="","",VLOOKUP($A106,フラッシュカードデータ!$C$4:$E$103,2,FALSE)) -> 504
B107: =IF(VLOOKUP($A106,フラッシュカードデータ!$C$4:$E$103,3,FALSE)="","",VLOOKUP($A106,フラッシュカードデータ!$C$4:$E$103,3,FALSE)) -> 504
A108: 54 | B108: =IF(VLOOKUP($A108,フラッシュカードデータ!$C$4:$E$103,2,FALSE)="","",VLOOKUP($A108,フラッシュカードデータ!$C$4:$E$103,2,FALSE)) -> 101
B109: =IF(VLOOKUP($A108,フラッシュカードデータ!$C$4:$E$103,3,FALSE)="","",VLOOKUP($A108,フラッシュカードデータ!$C$4:$E$103,3,FALSE)) -> 101
A110: 55 | B110: =IF(VLOOKUP($A110,フラッシュカードデータ!$C$4:$E$103,2,FALSE)="","",VLOOKUP($A110,フラッシュカードデータ!$C$4:$E$103,2,FALSE)) -> 111
B111: =IF(VLOOKUP($A110,フラッシュカードデータ!$C$4:$E$103,3,FALSE)="","",VLOOKUP($A110,フラッシュカードデータ!$C$4:$E$103,3,FALSE)) -> 111
A112: 56 | B112: =IF(VLOOKUP($A112,フラッシュカードデータ!$C$4:$E$103,2,FALSE)="","",VLOOKUP($A112,フラッシュカードデータ!$C$4:$E$103,2,FALSE)) -> 129
B113: =IF(VLOOKUP($A112,フラッシュカードデータ!$C$4:$E$103,3,FALSE)="","",VLOOKUP($A112,フラッシュカードデータ!$C$4:$E$103,3,FALSE)) -> 129
A114: 57 | B114: =IF(VLOOKUP($A114,フラッシュカードデータ!$C$4:$E$103,2,FALSE)="","",VLOOKUP($A114,フラッシュカードデータ!$C$4:$E$103,2,FALSE)) -> 327
B115: =IF(VLOOKUP($A114,フラッシュカードデータ!$C$4:$E$103,3,FALSE)="","",VLOOKUP($A114,フラッシュカードデータ!$C$4:$E$103,3,FALSE)) -> 327
A116: 58 | B116: =IF(VLOOKUP($A116,フラッシュカードデータ!$C$4:$E$103,2,FALSE)="","",VLOOKUP($A116,フラッシュカードデータ!$C$4:$E$103,2,FALSE)) -> 350
B117: =IF(VLOOKUP($A116,フラッシュカードデータ!$C$4:$E$103,3,FALSE)="","",VLOOKUP($A116,フラッシュカードデータ!$C$4:$E$103,3,FALSE)) -> 350
A118: 59 | B118: =IF(VLOOKUP($A118,フラッシュカードデータ!$C$4:$E$103,2,FALSE)="","",VLOOKUP($A118,フラッシュカードデータ!$C$4:$E$103,2,FALSE)) -> 645
B119: =IF(VLOOKUP($A118,フラッシュカードデータ!$C$4:$E$103,3,FALSE)="","",VLOOKUP($A118,フラッシュカードデータ!$C$4:$E$103,3,FALSE)) -> 645
A120: 60 | B120: =IF(VLOOKUP($A120,フラッシュカードデータ!$C$4:$E$103,2,FALSE)="","",VLOOKUP($A120,フラッシュカードデータ!$C$4:$E$103,2,FALSE)) -> 608
B121: =IF(VLOOKUP($A120,フラッシュカードデータ!$C$4:$E$103,3,FALSE)="","",VLOOKUP($A120,フラッシュカードデータ!$C$4:$E$103,3,FALSE)) -> 608
A122: 61 | B122: =IF(VLOOKUP($A122,フラッシュカードデータ!$C$4:$E$103,2,FALSE)="","",VLOOKUP($A122,フラッシュカードデータ!$C$4:$E$103,2,FALSE)) -> 297
B123: =IF(VLOOKUP($A122,フラッシュカードデータ!$C$4:$E$103,3,FALSE)="","",VLOOKUP($A122,フラッシュカードデータ!$C$4:$E$103,3,FALSE)) -> 297
A124: 62 | B124: =IF(VLOOKUP($A124,フラッシュカードデータ!$C$4:$E$103,2,FALSE)="","",VLOOKUP($A124,フラッシュカードデータ!$C$4:$E$103,2,FALSE)) -> 196
B125: =IF(VLOOKUP($A124,フラッシュカードデータ!$C$4:$E$103,3,FALSE)="","",VLOOKUP($A124,フラッシュカードデータ!$C$4:$E$103,3,FALSE)) -> 196
A126: 63 | B126: =IF(VLOOKUP($A126,フラッシュカードデータ!$C$4:$E$103,2,FALSE)="","",VLOOKUP($A126,フラッシュカードデータ!$C$4:$E$103,2,FALSE)) -> 758
B127: =IF(VLOOKUP($A126,フラッシュカードデータ!$C$4:$E$103,3,FALSE)="","",VLOOKUP($A126,フラッシュカードデータ!$C$4:$E$103,3,FALSE)) -> 758
A128: 64 | B128: =IF(VLOOKUP($A128,フラッシュカードデータ!$C$4:$E$103,2,FALSE)="","",VLOOKUP($A128,フラッシュカードデータ!$C$4:$E$103,2,FALSE)) -> 580
B129: =IF(VLOOKUP($A128,フラッシュカードデータ!$C$4:$E$103,3,FALSE)="","",VLOOKUP($A128,フラッシュカードデータ!$C$4:$E$103,3,FALSE)) -> 580
A130: 65 | B130: =IF(VLOOKUP($A130,フラッシュカードデータ!$C$4:$E$103,2,FALSE)="","",VLOOKUP($A130,フラッシュカードデータ!$C$4:$E$103,2,FALSE)) -> 414
B131: =IF(VLOOKUP($A130,フラッシュカードデータ!$C$4:$E$103,3,FALSE)="","",VLOOKUP($A130,フラッシュカードデータ!$C$4:$E$103,3,FALSE)) -> 414
A132: 66 | B132: =IF(VLOOKUP($A132,フラッシュカードデータ!$C$4:$E$103,2,FALSE)="","",VLOOKUP($A132,フラッシュカードデータ!$C$4:$E$103,2,FALSE)) -> 555
B133: =IF(VLOOKUP($A132,フラッシュカードデータ!$C$4:$E$103,3,FALSE)="","",VLOOKUP($A132,フラッシュカードデータ!$C$4:$E$103,3,FALSE)) -> 555
A134: 67 | B134: =IF(VLOOKUP($A134,フラッシュカードデータ!$C$4:$E$103,2,FALSE)="","",VLOOKUP($A134,フラッシュカードデータ!$C$4:$E$103,2,FALSE)) -> 196
B135: =IF(VLOOKUP($A134,フラッシュカードデータ!$C$4:$E$103,3,FALSE)="","",VLOOKUP($A134,フラッシュカードデータ!$C$4:$E$103,3,FALSE)) -> 196
A136: 68 | B136: =IF(VLOOKUP($A136,フラッシュカードデータ!$C$4:$E$103,2,FALSE)="","",VLOOKUP($A136,フラッシュカードデータ!$C$4:$E$103,2,FALSE)) -> 338
B137: =IF(VLOOKUP($A136,フラッシュカードデータ!$C$4:$E$103,3,FALSE)="","",VLOOKUP($A136,フラッシュカードデータ!$C$4:$E$103,3,FALSE)) -> 338
A138: 69 | B138: =IF(VLOOKUP($A138,フラッシュカードデータ!$C$4:$E$103,2,FALSE)="","",VLOOKUP($A138,フラッシュカードデータ!$C$4:$E$103,2,FALSE)) -> 719
B139: =IF(VLOOKUP($A138,フラッシュカードデータ!$C$4:$E$103,3,FALSE)="","",VLOOKUP($A138,フラッシュカードデータ!$C$4:$E$103,3,FALSE)) -> 719
A140: 70 | B140: =IF(VLOOKUP($A140,フラッシュカードデータ!$C$4:$E$103,2,FALSE)="","",VLOOKUP($A140,フラッシュカードデータ!$C$4:$E$103,2,FALSE)) -> 929
B141: =IF(VLOOKUP($A140,フラッシュカードデータ!$C$4:$E$103,3,FALSE)="","",VLOOKUP($A140,フラッシュカードデータ!$C$4:$E$103,3,FALSE)) -> 929
A142: 71 | B142: =IF(VLOOKUP($A142,フラッシュカードデータ!$C$4:$E$103,2,FALSE)="","",VLOOKUP($A142,フラッシュカードデータ!$C$4:$E$103,2,FALSE)) -> 393
B143: =IF(VLOOKUP($A142,フラッシュカードデータ!$C$4:$E$103,3,FALSE)="","",VLOOKUP($A142,フラッシュカードデータ!$C$4:$E$103,3,FALSE)) -> 393
A144: 72 | B144: =IF(VLOOKUP($A144,フラッシュカードデータ!$C$4:$E$103,2,FALSE)="","",VLOOKUP($A144,フラッシュカードデータ!$C$4:$E$103,2,FALSE)) -> 897
B145: =IF(VLOOKUP($A144,フラッシュカードデータ!$C$4:$E$103,3,FALSE)="","",VLOOKUP($A144,フラッシュカードデータ!$C$4:$E$103,3,FALSE)) -> 897
A146: 73 | B146: =IF(VLOOKUP($A146,フラッシュカードデータ!$C$4:$E$103,2,FALSE)="","",VLOOKUP($A146,フラッシュカードデータ!$C$4:$E$103,2,FALSE)) -> 974
B147: =IF(VLOOKUP($A146,フラッシュカードデータ!$C$4:$E$103,3,FALSE)="","",VLOOKUP($A146,フラッシュカードデータ!$C$4:$E$103,3,FALSE)) -> 974
A148: 74 | B148: =IF(VLOOKUP($A148,フラッシュカードデータ!$C$4:$E$103,2,FALSE)="","",VLOOKUP($A148,フラッシュカードデータ!$C$4:$E$103,2,FALSE)) -> 153
B149: =IF(VLOOKUP($A148,フラッシュカードデータ!$C$4:$E$103,3,FALSE)="","",VLOOKUP($A148,フラッシュカードデータ!$C$4:$E$103,3,FALSE)) -> 153
A150: 75 | B150: =IF(VLOOKUP($A150,フラッシュカードデータ!$C$4:$E$103,2,FALSE)="","",VLOOKUP($A150,フラッシュカードデータ!$C$4:$E$103,2,FALSE)) -> 862
B151: =IF(VLOOKUP($A150,フラッシュカードデータ!$C$4:$E$103,3,FALSE)="","",VLOOKUP($A150,フラッシュカードデータ!$C$4:$E$103,3,FALSE)) -> 862
A152: 76 | B152: =IF(VLOOKUP($A152,フラッシュカードデータ!$C$4:$E$103,2,FALSE)="","",VLOOKUP($A152,フラッシュカードデータ!$C$4:$E$103,2,FALSE)) -> 590
B153: =IF(VLOOKUP($A152,フラッシュカードデータ!$C$4:$E$103,3,FALSE)="","",VLOOKUP($A152,フラッシュカードデータ!$C$4:$E$103,3,FALSE)) -> 590
A154: 77 | B154: =IF(VLOOKUP($A154,フラッシュカードデータ!$C$4:$E$103,2,FALSE)="","",VLOOKUP($A154,フラッシュカードデータ!$C$4:$E$103,2,FALSE)) -> 258
B155: =IF(VLOOKUP($A154,フラッシュカードデータ!$C$4:$E$103,3,FALSE)="","",VLOOKUP($A154,フラッシュカードデータ!$C$4:$E$103,3,FALSE)) -> 258
A156: 78 | B156: =IF(VLOOKUP($A156,フラッシュカードデータ!$C$4:$E$103,2,FALSE)="","",VLOOKUP($A156,フラッシュカードデータ!$C$4:$E$103,2,FALSE)) -> 471
B157: =IF(VLOOKUP($A156,フラッシュカードデータ!$C$4:$E$103,3,FALSE)="","",VLOOKUP($A156,フラッシュカードデータ!$C$4:$E$103,3,FALSE)) -> 471
A158: 79 | B158: =IF(VLOOKUP($A158,フラッシュカードデータ!$C$4:$E$103,2,FALSE)="","",VLOOKUP($A158,フラッシュカードデータ!$C$4:$E$103,2,FALSE)) -> 271
B159: =IF(VLOOKUP($A158,フラッシュカードデータ!$C$4:$E$103,3,FALSE)="","",VLOOKUP($A158,フラッシュカードデータ!$C$4:$E$103,3,FALSE)) -> 271
A160: 80 | B160: =IF(VLOOKUP($A160,フラッシュカードデータ!$C$4:$E$103,2,FALSE)="","",VLOOKUP($A160,フラッシュカードデータ!$C$4:$E$103,2,FALSE)) -> 991
B161: =IF(VLOOKUP($A160,フラッシュカードデータ!$C$4:$E$103,3,FALSE)="","",VLOOKUP($A160,フラッシュカードデータ!$C$4:$E$103,3,FALSE)) -> 991
A162: 81 | B162: =IF(VLOOKUP($A162,フラッシュカードデータ!$C$4:$E$103,2,FALSE)="","",VLOOKUP($A162,フラッシュカードデータ!$C$4:$E$103,2,FALSE)) -> 459
B163: =IF(VLOOKUP($A162,フラッシュカードデータ!$C$4:$E$103,3,FALSE)="","",VLOOKUP($A162,フラッシュカードデータ!$C$4:$E$103,3,FALSE)) -> 459
A164: 82 | B164: =IF(VLOOKUP($A164,フラッシュカードデータ!$C$4:$E$103,2,FALSE)="","",VLOOKUP($A164,フラッシュカードデータ!$C$4:$E$103,2,FALSE)) -> 247
B165: =IF(VLOOKUP($A164,フラッシュカードデータ!$C$4:$E$103,3,FALSE)="","",VLOOKUP($A164,フラッシュカードデータ!$C$4:$E$103,3,FALSE)) -> 247
A166: 83 | B166: =IF(VLOOKUP($A166,フラッシュカードデータ!$C$4:$E$103,2,FALSE)="","",VLOOKUP($A166,フラッシュカードデータ!$C$4:$E$103,2,FALSE)) -> 203
B167: =IF(VLOOKUP($A166,フラッシュカードデータ!$C$4:$E$103,3,FALSE)="","",VLOOKUP($A166,フラッシュカードデータ!$C$4:$E$103,3,FALSE)) -> 203
A168: 84 | B168: =IF(VLOOKUP($A168,フラッシュカードデータ!$C$4:$E$103,2,FALSE)="","",VLOOKUP($A168,フラッシュカードデータ!$C$4:$E$103,2,FALSE)) -> 282
B169: =IF(VLOOKUP($A168,フラッシュカードデータ!$C$4:$E$103,3,FALSE)="","",VLOOKUP($A168,フラッシュカードデータ!$C$4:$E$103,3,FALSE)) -> 282
A170: 85 | B170: =IF(VLOOKUP($A170,フラッシュカードデータ!$C$4:$E$103,2,FALSE)="","",VLOOKUP($A170,フラッシュカードデータ!$C$4:$E$103,2,FALSE)) -> 485
B171: =IF(VLOOKUP($A170,フラッシュカードデータ!$C$4:$E$103,3,FALSE)="","",VLOOKUP($A170,フラッシュカードデータ!$C$4:$E$103,3,FALSE)) -> 485
A172: 86 | B172: =IF(VLOOKUP($A172,フラッシュカードデータ!$C$4:$E$103,2,FALSE)="","",VLOOKUP($A172,フラッシュカードデータ!$C$4:$E$103,2,FALSE)) -> 143
B173: =IF(VLOOKUP($A172,フラッシュカードデータ!$C$4:$E$103,3,FALSE)="","",VLOOKUP($A172,フラッシュカードデータ!$C$4:$E$103,3,FALSE)) -> 143
A174: 87 | B174: =IF(VLOOKUP($A174,フラッシュカードデータ!$C$4:$E$103,2,FALSE)="","",VLOOKUP($A174,フラッシュカードデータ!$C$4:$E$103,2,FALSE)) -> 137
B175: =IF(VLOOKUP($A174,フラッシュカードデータ!$C$4:$E$103,3,FALSE)="","",VLOOKUP($A174,フラッシュカードデータ!$C$4:$E$103,3,FALSE)) -> 137
A176: 88 | B176: =IF(VLOOKUP($A176,フラッシュカードデータ!$C$4:$E$103,2,FALSE)="","",VLOOKUP($A176,フラッシュカードデータ!$C$4:$E$103,2,FALSE)) -> 880
B177: =IF(VLOOKUP($A176,フラッシュカードデータ!$C$4:$E$103,3,FALSE)="","",VLOOKUP($A176,フラッシュカードデータ!$C$4:$E$103,3,FALSE)) -> 880
A178: 89 | B178: =IF(VLOOKUP($A178,フラッシュカードデータ!$C$4:$E$103,2,FALSE)="","",VLOOKUP($A178,フラッシュカードデータ!$C$4:$E$103,2,FALSE)) -> 194
B179: =IF(VLOOKUP($A178,フラッシュカードデータ!$C$4:$E$103,3,FALSE)="","",VLOOKUP($A178,フラッシュカードデータ!$C$4:$E$103,3,FALSE)) -> 194
A180: 90 | B180: =IF(VLOOKUP($A180,フラッシュカードデータ!$C$4:$E$103,2,FALSE)="","",VLOOKUP($A180,フラッシュカードデータ!$C$4:$E$103,2,FALSE)) -> 838
B181: =IF(VLOOKUP($A180,フラッシュカードデータ!$C$4:$E$103,3,FALSE)="","",VLOOKUP($A180,フラッシュカードデータ!$C$4:$E$103,3,FALSE)) -> 838
A182: 91 | B182: =IF(VLOOKUP($A182,フラッシュカードデータ!$C$4:$E$103,2,FALSE)="","",VLOOKUP($A182,フラッシュカードデータ!$C$4:$E$103,2,FALSE)) -> 202
B183: =IF(VLOOKUP($A182,フラッシュカードデータ!$C$4:$E$103,3,FALSE)="","",VLOOKUP($A182,フラッシュカードデータ!$C$4:$E$103,3,FALSE)) -> 202
A184: 92 | B184: =IF(VLOOKUP($A184,フラッシュカードデータ!$C$4:$E$103,2,FALSE)="","",VLOOKUP($A184,フラッシュカードデータ!$C$4:$E$103,2,FALSE)) -> 664
B185: =IF(VLOOKUP($A184,フラッシュカードデータ!$C$4:$E$103,3,FALSE)="","",VLOOKUP($A184,フラッシュカードデータ!$C$4:$E$103,3,FALSE)) -> 664
A186: 93 | B186: =IF(VLOOKUP($A186,フラッシュカードデータ!$C$4:$E$103,2,FALSE)="","",VLOOKUP($A186,フラッシュカードデータ!$C$4:$E$103,2,FALSE)) -> 745
B187: =IF(VLOOKUP($A186,フラッシュカードデータ!$C$4:$E$103,3,FALSE)="","",VLOOKUP($A186,フラッシュカードデータ!$C$4:$E$103,3,FALSE)) -> 745
A188: 94 | B188: =IF(VLOOKUP($A188,フラッシュカードデータ!$C$4:$E$103,2,FALSE)="","",VLOOKUP($A188,フラッシュカードデータ!$C$4:$E$103,2,FALSE)) -> 819
B189: =IF(VLOOKUP($A188,フラッシュカードデータ!$C$4:$E$103,3,FALSE)="","",VLOOKUP($A188,フラッシュカードデータ!$C$4:$E$103,3,FALSE)) -> 819
A190: 95 | B190: =IF(VLOOKUP($A190,フラッシュカードデータ!$C$4:$E$103,2,FALSE)="","",VLOOKUP($A190,フラッシュカードデータ!$C$4:$E$103,2,FALSE)) -> 989
B191: =IF(VLOOKUP($A190,フラッシュカードデータ!$C$4:$E$103,3,FALSE)="","",VLOOKUP($A190,フラッシュカードデータ!$C$4:$E$103,3,FALSE)) -> 989
A192: 96 | B192: =IF(VLOOKUP($A192,フラッシュカードデータ!$C$4:$E$103,2,FALSE)="","",VLOOKUP($A192,フラッシュカードデータ!$C$4:$E$103,2,FALSE)) -> 675
B193: =IF(VLOOKUP($A192,フラッシュカードデータ!$C$4:$E$103,3,FALSE)="","",VLOOKUP($A192,フラッシュカードデータ!$C$4:$E$103,3,FALSE)) -> 675
A194: 97 | B194: =IF(VLOOKUP($A194,フラッシュカードデータ!$C$4:$E$103,2,FALSE)="","",VLOOKUP($A194,フラッシュカードデータ!$C$4:$E$103,2,FALSE)) -> 934
B195: =IF(VLOOKUP($A194,フラッシュカードデータ!$C$4:$E$103,3,FALSE)="","",VLOOKUP($A194,フラッシュカードデータ!$C$4:$E$103,3,FALSE)) -> 934
A196: 98 | B196: =IF(VLOOKUP($A196,フラッシュカードデータ!$C$4:$E$103,2,FALSE)="","",VLOOKUP($A196,フラッシュカードデータ!$C$4:$E$103,2,FALSE)) -> 643
B197: =IF(VLOOKUP($A196,フラッシュカードデータ!$C$4:$E$103,3,FALSE)="","",VLOOKUP($A196,フラッシュカードデータ!$C$4:$E$103,3,FALSE)) -> 643
A198: 99 | B198: =IF(VLOOKUP($A198,フラッシュカードデータ!$C$4:$E$103,2,FALSE)="","",VLOOKUP($A198,フラッシュカードデータ!$C$4:$E$103,2,FALSE)) -> 605
B199: =IF(VLOOKUP($A198,フラッシュカードデータ!$C$4:$E$103,3,FALSE)="","",VLOOKUP($A198,フラッシュカードデータ!$C$4:$E$103,3,FALSE)) -> 605
A200: 100 | B200: =IF(VLOOKUP($A200,フラッシュカードデータ!$C$4:$E$103,2,FALSE)="","",VLOOKUP($A200,フラッシュカードデータ!$C$4:$E$103,2,FALSE)) -> 942
... 1 more rows

Sheet フラッシュカード(横短印刷用）
B1: =IF(フラッシュカードデータ!$C$2="","",フラッシュカードデータ!$C$2) -> 数字でかきましょう
A2: 1 | B2: =IF(VLOOKUP($A2,フラッシュカードデータ!$C$4:$E$103,2,FALSE)="","",VLOOKUP($A2,フラッシュカードデータ!$C$4:$E$103,2,FALSE)) -> 920 | D2: A4用紙（縦向き)に 印刷されます。
B3: =IF(VLOOKUP($A2,フラッシュカードデータ!$C$4:$E$103,3,FALSE)="","",VLOOKUP($A2,フラッシュカードデータ!$C$4:$E$103,3,FALSE)) -> 920 | D3: 真ん中で折って、 貼り合わせると フラッシュカードが できあがります。
A4: 2 | B4: =IF(VLOOKUP($A4,フラッシュカードデータ!$C$4:$E$103,2,FALSE)="","",VLOOKUP($A4,フラッシュカードデータ!$C$4:$E$103,2,FALSE)) -> 672
B5: =IF(VLOOKUP($A4,フラッシュカードデータ!$C$4:$E$103,3,FALSE)="","",VLOOKUP($A4,フラッシュカードデータ!$C$4:$E$103,3,FALSE)) -> 672
A6: 3 | B6: =IF(VLOOKUP($A6,フラッシュカードデータ!$C$4:$E$103,2,FALSE)="","",VLOOKUP($A6,フラッシュカードデータ!$C$4:$E$103,2,FALSE)) -> 496
B7: =IF(VLOOKUP($A6,フラッシュカードデータ!$C$4:$E$103,3,FALSE)="","",VLOOKUP($A6,フラッシュカードデータ!$C$4:$E$103,3,FALSE)) -> 496
A8: 4 | B8: =IF(VLOOKUP($A8,フラッシュカードデータ!$C$4:$E$103,2,FALSE)="","",VLOOKUP($A8,フラッシュカードデータ!$C$4:$E$103,2,FALSE)) -> 545
B9: =IF(VLOOKUP($A8,フラッシュカードデータ!$C$4:$E$103,3,FALSE)="","",VLOOKUP($A8,フラッシュカードデータ!$C$4:$E$103,3,FALSE)) -> 545
A10: 5 | B10: =IF(VLOOKUP($A10,フラッシュカードデータ!$C$4:$E$103,2,FALSE)="","",VLOOKUP($A10,フラッシュカードデータ!$C$4:$E$103,2,FALSE)) -> 260
B11: =IF(VLOOKUP($A10,フラッシュカードデータ!$C$4:$E$103,3,FALSE)="","",VLOOKUP($A10,フラッシュカードデータ!$C$4:$E$103,3,FALSE)) -> 260
A12: 6 | B12: =IF(VLOOKUP($A12,フラッシュカードデータ!$C$4:$E$103,2,FALSE)="","",VLOOKUP($A12,フラッシュカードデータ!$C$4:$E$103,2,FALSE)) -> 473
B13: =IF(VLOOKUP($A12,フラッシュカードデータ!$C$4:$E$103,3,FALSE)="","",VLOOKUP($A12,フラッシュカードデータ!$C$4:$E$103,3,FALSE)) -> 473
A14: 7 | B14: =IF(VLOOKUP($A14,フラッシュカードデータ!$C$4:$E$103,2,FALSE)="","",VLOOKUP($A14,フラッシュカードデータ!$C$4:$E$103,2,FALSE)) -> 176
B15: =IF(VLOOKUP($A14,フラッシュカードデータ!$C$4:$E$103,3,FALSE)="","",VLOOKUP($A14,フラッシュカードデータ!$C$4:$E$103,3,FALSE)) -> 176
A16: 8 | B16: =IF(VLOOKUP($A16,フラッシュカードデータ!$C$4:$E$103,2,FALSE)="","",VLOOKUP($A16,フラッシュカードデータ!$C$4:$E$103,2,FALSE)) -> 850
B17: =IF(VLOOKUP($A16,フラッシュカードデータ!$C$4:$E$103,3,FALSE)="","",VLOOKUP($A16,フラッシュカードデータ!$C$4:$E$103,3,FALSE)) -> 850
A18: 9 | B18: =IF(VLOOKUP($A18,フラッシュカードデータ!$C$4:$E$103,2,FALSE)="","",VLOOKUP($A18,フラッシュカードデータ!$C$4:$E$103,2,FALSE)) -> 523
B19: =IF(VLOOKUP($A18,フラッシュカードデータ!$C$4:$E$103,3,FALSE)="","",VLOOKUP($A18,フラッシュカードデータ!$C$4:$E$103,3,FALSE)) -> 523
A20: 10 | B20: =IF(VLOOKUP($A20,フラッシュカードデータ!$C$4:$E$103,2,FALSE)="","",VLOOKUP($A20,フラッシュカードデータ!$C$4:$E$103,2,FALSE)) -> 933
B21: =IF(VLOOKUP($A20,フラッシュカードデータ!$C$4:$E$103,3,FALSE)="","",VLOOKUP($A20,フラッシュカードデータ!$C$4:$E$103,3,FALSE)) -> 933
A22: 11 | B22: =IF(VLOOKUP($A22,フラッシュカードデータ!$C$4:$E$103,2,FALSE)="","",VLOOKUP($A22,フラッシュカードデータ!$C$4:$E$103,2,FALSE)) -> 855
B23: =IF(VLOOKUP($A22,フラッシュカードデータ!$C$4:$E$103,3,FALSE)="","",VLOOKUP($A22,フラッシュカードデータ!$C$4:$E$103,3,FALSE)) -> 855
A24: 12 | B24: =IF(VLOOKUP($A24,フラッシュカードデータ!$C$4:$E$103,2,FALSE)="","",VLOOKUP($A24,フラッシュカードデータ!$C$4:$E$103,2,FALSE)) -> 674
B25: =IF(VLOOKUP($A24,フラッシュカードデータ!$C$4:$E$103,3,FALSE)="","",VLOOKUP($A24,フラッシュカードデータ!$C$4:$E$103,3,FALSE)) -> 674
A26: 13 | B26: =IF(VLOOKUP($A26,フラッシュカードデータ!$C$4:$E$103,2,FALSE)="","",VLOOKUP($A26,フラッシュカードデータ!$C$4:$E$103,2,FALSE)) -> 151
B27: =IF(VLOOKUP($A26,フラッシュカードデータ!$C$4:$E$103,3,FALSE)="","",VLOOKUP($A26,フラッシュカードデータ!$C$4:$E$103,3,FALSE)) -> 151
A28: 14 | B28: =IF(VLOOKUP($A28,フラッシュカードデータ!$C$4:$E$103,2,FALSE)="","",VLOOKUP($A28,フラッシュカードデータ!$C$4:$E$103,2,FALSE)) -> 847
B29: =IF(VLOOKUP($A28,フラッシュカードデータ!$C$4:$E$103,3,FALSE)="","",VLOOKUP($A28,フラッシュカードデータ!$C$4:$E$103,3,FALSE)) -> 847
A30: 15 | B30: =IF(VLOOKUP($A30,フラッシュカードデータ!$C$4:$E$103,2,FALSE)="","",VLOOKUP($A30,フラッシュカードデータ!$C$4:$E$103,2,FALSE)) -> 449
B31: =IF(VLOOKUP($A30,フラッシュカードデータ!$C$4:$E$103,3,FALSE)="","",VLOOKUP($A30,フラッシュカードデータ!$C$4:$E$103,3,FALSE)) -> 449
A32: 16 | B32: =IF(VLOOKUP($A32,フラッシュカードデータ!$C$4:$E$103,2,FALSE)="","",VLOOKUP($A32,フラッシュカードデータ!$C$4:$E$103,2,FALSE)) -> 797
B33: =IF(VLOOKUP($A32,フラッシュカードデータ!$C$4:$E$103,3,FALSE)="","",VLOOKUP($A32,フラッシュカードデータ!$C$4:$E$103,3,FALSE)) -> 797
A34: 17 | B34: =IF(VLOOKUP($A34,フラッシュカードデータ!$C$4:$E$103,2,FALSE)="","",VLOOKUP($A34,フラッシュカードデータ!$C$4:$E$103,2,FALSE)) -> 338
B35: =IF(VLOOKUP($A34,フラッシュカードデータ!$C$4:$E$103,3,FALSE)="","",VLOOKUP($A34,フラッシュカードデータ!$C$4:$E$103,3,FALSE)) -> 338
A36: 18 | B36: =IF(VLOOKUP($A36,フラッシュカードデータ!$C$4:$E$103,2,FALSE)="","",VLOOKUP($A36,フラッシュカードデータ!$C$4:$E$103,2,FALSE)) -> 172
B37: =IF(VLOOKUP($A36,フラッシュカードデータ!$C$4:$E$103,3,FALSE)="","",VLOOKUP($A36,フラッシュカードデータ!$C$4:$E$103,3,FALSE)) -> 172
A38: 19 | B38: =IF(VLOOKUP($A38,フラッシュカードデータ!$C$4:$E$103,2,FALSE)="","",VLOOKUP($A38,フラッシュカードデータ!$C$4:$E$103,2,FALSE)) -> 113
B39: =IF(VLOOKUP($A38,フラッシュカードデータ!$C$4:$E$103,3,FALSE)="","",VLOOKUP($A38,フラッシュカードデータ!$C$4:$E$103,3,FALSE)) -> 113
A40: 20 | B40: =IF(VLOOKUP($A40,フラッシュカードデータ!$C$4:$E$103,2,FALSE)="","",VLOOKUP($A40,フラッシュカードデータ!$C$4:$E$103,2,FALSE)) -> 756
B41: =IF(VLOOKUP($A40,フラッシュカードデータ!$C$4:$E$103,3,FALSE)="","",VLOOKUP($A40,フラッシュカードデータ!$C$4:$E$103,3,FALSE)) -> 756
A42: 21 | B42: =IF(VLOOKUP($A42,フラッシュカードデータ!$C$4:$E$103,2,FALSE)="","",VLOOKUP($A42,フラッシュカードデータ!$C$4:$E$103,2,FALSE)) -> 453
B43: =IF(VLOOKUP($A42,フラッシュカードデータ!$C$4:$E$103,3,FALSE)="","",VLOOKUP($A42,フラッシュカードデータ!$C$4:$E$103,3,FALSE)) -> 453
A44: 22 | B44: =IF(VLOOKUP($A44,フラッシュカードデータ!$C$4:$E$103,2,FALSE)="","",VLOOKUP($A44,フラッシュカードデータ!$C$4:$E$103,2,FALSE)) -> 231
B45: =IF(VLOOKUP($A44,フラッシュカードデータ!$C$4:$E$103,3,FALSE)="","",VLOOKUP($A44,フラッシュカードデータ!$C$4:$E$103,3,FALSE)) -> 231
A46: 23 | B46: =IF(VLOOKUP($A46,フラッシュカードデータ!$C$4:$E$103,2,FALSE)="","",VLOOKUP($A46,フラッシュカードデータ!$C$4:$E$103,2,FALSE)) -> 284
B47: =IF(VLOOKUP($A46,フラッシュカードデータ!$C$4:$E$103,3,FALSE)="","",VLOOKUP($A46,フラッシュカードデータ!$C$4:$E$103,3,FALSE)) -> 284
A48: 24 | B48: =IF(VLOOKUP($A48,フラッシュカードデータ!$C$4:$E$103,2,FALSE)="","",VLOOKUP($A48,フラッシュカードデータ!$C$4:$E$103,2,FALSE)) -> 930
B49: =IF(VLOOKUP($A48,フラッシュカードデータ!$C$4:$E$103,3,FALSE)="","",VLOOKUP($A48,フラッシュカードデータ!$C$4:$E$103,3,FALSE)) -> 930
A50: 25 | B50: =IF(VLOOKUP($A50,フラッシュカードデータ!$C$4:$E$103,2,FALSE)="","",VLOOKUP($A50,フラッシュカードデータ!$C$4:$E$103,2,FALSE)) -> 825
B51: =IF(VLOOKUP($A50,フラッシュカードデータ!$C$4:$E$103,3,FALSE)="","",VLOOKUP($A50,フラッシュカードデータ!$C$4:$E$103,3,FALSE)) -> 825
A52: 26 | B52: =IF(VLOOKUP($A52,フラッシュカードデータ!$C$4:$E$103,2,FALSE)="","",VLOOKUP($A52,フラッシュカードデータ!$C$4:$E$103,2,FALSE)) -> 160
B53: =IF(VLOOKUP($A52,フラッシュカードデータ!$C$4:$E$103,3,FALSE)="","",VLOOKUP($A52,フラッシュカードデータ!$C$4:$E$103,3,FALSE)) -> 160
A54: 27 | B54: =IF(VLOOKUP($A54,フラッシュカードデータ!$C$4:$E$103,2,FALSE)="","",VLOOKUP($A54,フラッシュカードデータ!$C$4:$E$103,2,FALSE)) -> 118
B55: =IF(VLOOKUP($A54,フラッシュカードデータ!$C$4:$E$103,3,FALSE)="","",VLOOKUP($A54,フラッシュカードデータ!$C$4:$E$103,3,FALSE)) -> 118
A56: 28 | B56: =IF(VLOOKUP($A56,フラッシュカードデータ!$C$4:$E$103,2,FALSE)="","",VLOOKUP($A56,フラッシュカードデータ!$C$4:$E$103,2,FALSE)) -> 921
B57: =IF(VLOOKUP($A56,フラッシュカードデータ!$C$4:$E$103,3,FALSE)="","",VLOOKUP($A56,フラッシュカードデータ!$C$4:$E$103,3,FALSE)) -> 921
A58: 29 | B58: =IF(VLOOKUP($A58,フラッシュカードデータ!$C$4:$E$103,2,FALSE)="","",VLOOKUP($A58,フラッシュカードデータ!$C$4:$E$103,2,FALSE)) -> 809
B59: =IF(VLOOKUP($A58,フラッシュカードデータ!$C$4:$E$103,3,FALSE)="","",VLOOKUP($A58,フラッシュカードデータ!$C$4:$E$103,3,FALSE)) -> 809
A60: 30 | B60: =IF(VLOOKUP($A60,フラッシュカードデータ!$C$4:$E$103,2,FALSE)="","",VLOOKUP($A60,フラッシュカードデータ!$C$4:$E$103,2,FALSE)) -> 518
B61: =IF(VLOOKUP($A60,フラッシュカードデータ!$C$4:$E$103,3,FALSE)="","",VLOOKUP($A60,フラッシュカードデータ!$C$4:$E$103,3,FALSE)) -> 518
A62: 31 | B62: =IF(VLOOKUP($A62,フラッシュカードデータ!$C$4:$E$103,2,FALSE)="","",VLOOKUP($A62,フラッシュカードデータ!$C$4:$E$103,2,FALSE)) -> 553
B63: =IF(VLOOKUP($A62,フラッシュカードデータ!$C$4:$E$103,3,FALSE)="","",VLOOKUP($A62,フラッシュカードデータ!$C$4:$E$103,3,FALSE)) -> 553
A64: 32 | B64: =IF(VLOOKUP($A64,フラッシュカードデータ!$C$4:$E$103,2,FALSE)="","",VLOOKUP($A64,フラッシュカードデータ!$C$4:$E$103,2,FALSE)) -> 882
B65: =IF(VLOOKUP($A64,フラッシュカードデータ!$C$4:$E$103,3,FALSE)="","",VLOOKUP($A64,フラッシュカードデータ!$C$4:$E$103,3,FALSE)) -> 882
A66: 33 | B66: =IF(VLOOKUP($A66,フラッシュカードデータ!$C$4:$E$103,2,FALSE)="","",VLOOKUP($A66,フラッシュカードデータ!$C$4:$E$103,2,FALSE)) -> 444
B67: =IF(VLOOKUP($A66,フラッシュカードデータ!$C$4:$E$103,3,FALSE)="","",VLOOKUP($A66,フラッシュカードデータ!$C$4:$E$103,3,FALSE)) -> 444
A68: 34 | B68: =IF(VLOOKUP($A68,フラッシュカードデータ!$C$4:$E$103,2,FALSE)="","",VLOOKUP($A68,フラッシュカードデータ!$C$4:$E$103,2,FALSE)) -> 159
B69: =IF(VLOOKUP($A68,フラッシュカードデータ!$C$4:$E$103,3,FALSE)="","",VLOOKUP($A68,フラッシュカードデータ!$C$4:$E$103,3,FALSE)) -> 159
A70: 35 | B70: =IF(VLOOKUP($A70,フラッシュカードデータ!$C$4:$E$103,2,FALSE)="","",VLOOKUP($A70,フラッシュカードデータ!$C$4:$E$103,2,FALSE)) -> 464
B71: =IF(VLOOKUP($A70,フラッシュカードデータ!$C$4:$E$103,3,FALSE)="","",VLOOKUP($A70,フラッシュカードデータ!$C$4:$E$103,3,FALSE)) -> 464
A72: 36 | B72: =IF(VLOOKUP($A72,フラッシュカードデータ!$C$4:$E$103,2,FALSE)="","",VLOOKUP($A72,フラッシュカードデータ!$C$4:$E$103,2,FALSE)) -> 741
B73: =IF(VLOOKUP($A72,フラッシュカードデータ!$C$4:$E$103,3,FALSE)="","",VLOOKUP($A72,フラッシュカードデータ!$C$4:$E$103,3,FALSE)) -> 741
A74: 37 | B74: =IF(VLOOKUP($A74,フラッシュカードデータ!$C$4:$E$103,2,FALSE)="","",VLOOKUP($A74,フラッシュカードデータ!$C$4:$E$103,2,FALSE)) -> 891
B75: =IF(VLOOKUP($A74,フラッシュカードデータ!$C$4:$E$103,3,FALSE)="","",VLOOKUP($A74,フラッシュカードデータ!$C$4:$E$103,3,FALSE)) -> 891
A76: 38 | B76: =IF(VLOOKUP($A76,フラッシュカードデータ!$C$4:$E$103,2,FALSE)="","",VLOOKUP($A76,フラッシュカードデータ!$C$4:$E$103,2,FALSE)) -> 157
B77: =IF(VLOOKUP($A76,フラッシュカードデータ!$C$4:$E$103,3,FALSE)="","",VLOOKUP($A76,フラッシュカードデータ!$C$4:$E$103,3,FALSE)) -> 157
A78: 39 | B78: =IF(VLOOKUP($A78,フラッシュカードデータ!$C$4:$E$103,2,FALSE)="","",VLOOKUP($A78,フラッシュカードデータ!$C$4:$E$103,2,FALSE)) -> 824
B79: =IF(VLOOKUP($A78,フラッシュカードデータ!$C$4:$E$103,3,FALSE)="","",VLOOKUP($A78,フラッシュカードデータ!$C$4:$E$103,3,FALSE)) -> 824
A80: 40 | B80: =IF(VLOOKUP($A80,フラッシュカードデータ!$C$4:$E$103,2,FALSE)="","",VLOOKUP($A80,フラッシュカードデータ!$C$4:$E$103,2,FALSE)) -> 786
B81: =IF(VLOOKUP($A80,フラッシュカードデータ!$C$4:$E$103,3,FALSE)="","",VLOOKUP($A80,フラッシュカードデータ!$C$4:$E$103,3,FALSE)) -> 786
A82: 41 | B82: =IF(VLOOKUP($A82,フラッシュカードデータ!$C$4:$E$103,2,FALSE)="","",VLOOKUP($A82,フラッシュカードデータ!$C$4:$E$103,2,FALSE)) -> 615
B83: =IF(VLOOKUP($A82,フラッシュカードデータ!$C$4:$E$103,3,FALSE)="","",VLOOKUP($A82,フラッシュカードデータ!$C$4:$E$103,3,FALSE)) -> 615
A84: 42 | B84: =IF(VLOOKUP($A84,フラッシュカードデータ!$C$4:$E$103,2,FALSE)="","",VLOOKUP($A84,フラッシュカードデータ!$C$4:$E$103,2,FALSE)) -> 844
B85: =IF(VLOOKUP($A84,フラッシュカードデータ!$C$4:$E$103,3,FALSE)="","",VLOOKUP($A84,フラッシュカードデータ!$C$4:$E$103,3,FALSE)) -> 844
A86: 43 | B86: =IF(VLOOKUP($A86,フラッシュカードデータ!$C$4:$E$103,2,FALSE)="","",VLOOKUP($A86,フラッシュカードデータ!$C$4:$E$103,2,FALSE)) -> 696
B87: =IF(VLOOKUP($A86,フラッシュカードデータ!$C$4:$E$103,3,FALSE)="","",VLOOKUP($A86,フラッシュカードデータ!$C$4:$E$103,3,FALSE)) -> 696
A88: 44 | B88: =IF(VLOOKUP($A88,フラッシュカードデータ!$C$4:$E$103,2,FALSE)="","",VLOOKUP($A88,フラッシュカードデータ!$C$4:$E$103,2,FALSE)) -> 683
B89: =IF(VLOOKUP($A88,フラッシュカードデータ!$C$4:$E$103,3,FALSE)="","",VLOOKUP($A88,フラッシュカードデータ!$C$4:$E$103,3,FALSE)) -> 683
A90: 45 | B90: =IF(VLOOKUP($A90,フラッシュカードデータ!$C$4:$E$103,2,FALSE)="","",VLOOKUP($A90,フラッシュカードデータ!$C$4:$E$103,2,FALSE)) -> 771
B91: =IF(VLOOKUP($A90,フラッシュカードデータ!$C$4:$E$103,3,FALSE)="","",VLOOKUP($A90,フラッシュカードデータ!$C$4:$E$103,3,FALSE)) -> 771
A92: 46 | B92: =IF(VLOOKUP($A92,フラッシュカードデータ!$C$4:$E$103,2,FALSE)="","",VLOOKUP($A92,フラッシュカードデータ!$C$4:$E$103,2,FALSE)) -> 500
B93: =IF(VLOOKUP($A92,フラッシュカードデータ!$C$4:$E$103,3,FALSE)="","",VLOOKUP($A92,フラッシュカードデータ!$C$4:$E$103,3,FALSE)) -> 500
A94: 47 | B94: =IF(VLOOKUP($A94,フラッシュカードデータ!$C$4:$E$103,2,FALSE)="","",VLOOKUP($A94,フラッシュカードデータ!$C$4:$E$103,2,FALSE)) -> 231
B95: =IF(VLOOKUP($A94,フラッシュカードデータ!$C$4:$E$103,3,FALSE)="","",VLOOKUP($A94,フラッシュカードデータ!$C$4:$E$103,3,FALSE)) -> 231
A96: 48 | B96: =IF(VLOOKUP($A96,フラッシュカードデータ!$C$4:$E$103,2,FALSE)="","",VLOOKUP($A96,フラッシュカードデータ!$C$4:$E$103,2,FALSE)) -> 349
B97: =IF(VLOOKUP($A96,フラッシュカードデータ!$C$4:$E$103,3,FALSE)="","",VLOOKUP($A96,フラッシュカードデータ!$C$4:$E$103,3,FALSE)) -> 349
A98: 49 | B98: =IF(VLOOKUP($A98,フラッシュカードデータ!$C$4:$E$103,2,FALSE)="","",VLOOKUP($A98,フラッシュカードデータ!$C$4:$E$103,2,FALSE)) -> 371
B99: =IF(VLOOKUP($A98,フラッシュカードデータ!$C$4:$E$103,3,FALSE)="","",VLOOKUP($A98,フラッシュカードデータ!$C$4:$E$103,3,FALSE)) -> 371
A100: 50 | B100: =IF(VLOOKUP($A100,フラッシュカードデータ!$C$4:$E$103,2,FALSE)="","",VLOOKUP($A100,フラッシュカードデータ!$C$4:$E$103,2,FALSE)) -> 172
B101: =IF(VLOOKUP($A100,フラッシュカードデータ!$C$4:$E$103,3,FALSE)="","",VLOOKUP($A100,フラッシュカードデータ!$C$4:$E$103,3,FALSE)) -> 172
A102: 51 | B102: =IF(VLOOKUP($A102,フラッシュカードデータ!$C$4:$E$103,2,FALSE)="","",VLOOKUP($A102,フラッシュカードデータ!$C$4:$E$103,2,FALSE)) -> 545
B103: =IF(VLOOKUP($A102,フラッシュカードデータ!$C$4:$E$103,3,FALSE)="","",VLOOKUP($A102,フラッシュカードデータ!$C$4:$E$103,3,FALSE)) -> 545
A104: 52 | B104: =IF(VLOOKUP($A104,フラッシュカードデータ!$C$4:$E$103,2,FALSE)="","",VLOOKUP($A104,フラッシュカードデータ!$C$4:$E$103,2,FALSE)) -> 617
B105: =IF(VLOOKUP($A104,フラッシュカードデータ!$C$4:$E$103,3,FALSE)="","",VLOOKUP($A104,フラッシュカードデータ!$C$4:$E$103,3,FALSE)) -> 617
A106: 53 | B106: =IF(VLOOKUP($A106,フラッシュカードデータ!$C$4:$E$103,2,FALSE)="","",VLOOKUP($A106,フラッシュカードデータ!$C$4:$E$103,2,FALSE)) -> 504
B107: =IF(VLOOKUP($A106,フラッシュカードデータ!$C$4:$E$103,3,FALSE)="","",VLOOKUP($A106,フラッシュカードデータ!$C$4:$E$103,3,FALSE)) -> 504
A108: 54 | B108: =IF(VLOOKUP($A108,フラッシュカードデータ!$C$4:$E$103,2,FALSE)="","",VLOOKUP($A108,フラッシュカードデータ!$C$4:$E$103,2,FALSE)) -> 101
B109: =IF(VLOOKUP($A108,フラッシュカードデータ!$C$4:$E$103,3,FALSE)="","",VLOOKUP($A108,フラッシュカードデータ!$C$4:$E$103,3,FALSE)) -> 101
A110: 55 | B110: =IF(VLOOKUP($A110,フラッシュカードデータ!$C$4:$E$103,2,FALSE)="","",VLOOKUP($A110,フラッシュカードデータ!$C$4:$E$103,2,FALSE)) -> 111
B111: =IF(VLOOKUP($A110,フラッシュカードデータ!$C$4:$E$103,3,FALSE)="","",VLOOKUP($A110,フラッシュカードデータ!$C$4:$E$103,3,FALSE)) -> 111
A112: 56 | B112: =IF(VLOOKUP($A112,フラッシュカードデータ!$C$4:$E$103,2,FALSE)="","",VLOOKUP($A112,フラッシュカードデータ!$C$4:$E$103,2,FALSE)) -> 129
B113: =IF(VLOOKUP($A112,フラッシュカードデータ!$C$4:$E$103,3,FALSE)="","",VLOOKUP($A112,フラッシュカードデータ!$C$4:$E$103,3,FALSE)) -> 129
A114: 57 | B114: =IF(VLOOKUP($A114,フラッシュカードデータ!$C$4:$E$103,2,FALSE)="","",VLOOKUP($A114,フラッシュカードデータ!$C$4:$E$103,2,FALSE)) -> 327
B115: =IF(VLOOKUP($A114,フラッシュカードデータ!$C$4:$E$103,3,FALSE)="","",VLOOKUP($A114,フラッシュカードデータ!$C$4:$E$103,3,FALSE)) -> 327
A116: 58 | B116: =IF(VLOOKUP($A116,フラッシュカードデータ!$C$4:$E$103,2,FALSE)="","",VLOOKUP($A116,フラッシュカードデータ!$C$4:$E$103,2,FALSE)) -> 350
B117: =IF(VLOOKUP($A116,フラッシュカードデータ!$C$4:$E$103,3,FALSE)="","",VLOOKUP($A116,フラッシュカードデータ!$C$4:$E$103,3,FALSE)) -> 350
A118: 59 | B118: =IF(VLOOKUP($A118,フラッシュカードデータ!$C$4:$E$103,2,FALSE)="","",VLOOKUP($A118,フラッシュカードデータ!$C$4:$E$103,2,FALSE)) -> 645
B119: =IF(VLOOKUP($A118,フラッシュカードデータ!$C$4:$E$103,3,FALSE)="","",VLOOKUP($A118,フラッシュカードデータ!$C$4:$E$103,3,FALSE)) -> 645
A120: 60 | B120: =IF(VLOOKUP($A120,フラッシュカードデータ!$C$4:$E$103,2,FALSE)="","",VLOOKUP($A120,フラッシュカードデータ!$C$4:$E$103,2,FALSE)) -> 608
B121: =IF(VLOOKUP($A120,フラッシュカードデータ!$C$4:$E$103,3,FALSE)="","",VLOOKUP($A120,フラッシュカードデータ!$C$4:$E$103,3,FALSE)) -> 608
A122: 61 | B122: =IF(VLOOKUP($A122,フラッシュカードデータ!$C$4:$E$103,2,FALSE)="","",VLOOKUP($A122,フラッシュカードデータ!$C$4:$E$103,2,FALSE)) -> 297
B123: =IF(VLOOKUP($A122,フラッシュカードデータ!$C$4:$E$103,3,FALSE)="","",VLOOKUP($A122,フラッシュカードデータ!$C$4:$E$103,3,FALSE)) -> 297
A124: 62 | B124: =IF(VLOOKUP($A124,フラッシュカードデータ!$C$4:$E$103,2,FALSE)="","",VLOOKUP($A124,フラッシュカードデータ!$C$4:$E$103,2,FALSE)) -> 196
B125: =IF(VLOOKUP($A124,フラッシュカードデータ!$C$4:$E$103,3,FALSE)="","",VLOOKUP($A124,フラッシュカードデータ!$C$4:$E$103,3,FALSE)) -> 196
A126: 63 | B126: =IF(VLOOKUP($A126,フラッシュカードデータ!$C$4:$E$103,2,FALSE)="","",VLOOKUP($A126,フラッシュカードデータ!$C$4:$E$103,2,FALSE)) -> 758
B127: =IF(VLOOKUP($A126,フラッシュカードデータ!$C$4:$E$103,3,FALSE)="","",VLOOKUP($A126,フラッシュカードデータ!$C$4:$E$103,3,FALSE)) -> 758
A128: 64 | B128: =IF(VLOOKUP($A128,フラッシュカードデータ!$C$4:$E$103,2,FALSE)="","",VLOOKUP($A128,フラッシュカードデータ!$C$4:$E$103,2,FALSE)) -> 580
B129: =IF(VLOOKUP($A128,フラッシュカードデータ!$C$4:$E$103,3,FALSE)="","",VLOOKUP($A128,フラッシュカードデータ!$C$4:$E$103,3,FALSE)) -> 580
A130: 65 | B130: =IF(VLOOKUP($A130,フラッシュカードデータ!$C$4:$E$103,2,FALSE)="","",VLOOKUP($A130,フラッシュカードデータ!$C$4:$E$103,2,FALSE)) -> 414
B131: =IF(VLOOKUP($A130,フラッシュカードデータ!$C$4:$E$103,3,FALSE)="","",VLOOKUP($A130,フラッシュカードデータ!$C$4:$E$103,3,FALSE)) -> 414
A132: 66 | B132: =IF(VLOOKUP($A132,フラッシュカードデータ!$C$4:$E$103,2,FALSE)="","",VLOOKUP($A132,フラッシュカードデータ!$C$4:$E$103,2,FALSE)) -> 555
B133: =IF(VLOOKUP($A132,フラッシュカードデータ!$C$4:$E$103,3,FALSE)="","",VLOOKUP($A132,フラッシュカードデータ!$C$4:$E$103,3,FALSE)) -> 555
A134: 67 | B134: =IF(VLOOKUP($A134,フラッシュカードデータ!$C$4:$E$103,2,FALSE)="","",VLOOKUP($A134,フラッシュカードデータ!$C$4:$E$103,2,FALSE)) -> 196
B135: =IF(VLOOKUP($A134,フラッシュカードデータ!$C$4:$E$103,3,FALSE)="","",VLOOKUP($A134,フラッシュカードデータ!$C$4:$E$103,3,FALSE)) -> 196
A136: 68 | B136: =IF(VLOOKUP($A136,フラッシュカードデータ!$C$4:$E$103,2,FALSE)="","",VLOOKUP($A136,フラッシュカードデータ!$C$4:$E$103,2,FALSE)) -> 338
B137: =IF(VLOOKUP($A136,フラッシュカードデータ!$C$4:$E$103,3,FALSE)="","",VLOOKUP($A136,フラッシュカードデータ!$C$4:$E$103,3,FALSE)) -> 338
A138: 69 | B138: =IF(VLOOKUP($A138,フラッシュカードデータ!$C$4:$E$103,2,FALSE)="","",VLOOKUP($A138,フラッシュカードデータ!$C$4:$E$103,2,FALSE)) -> 719
B139: =IF(VLOOKUP($A138,フラッシュカードデータ!$C$4:$E$103,3,FALSE)="","",VLOOKUP($A138,フラッシュカードデータ!$C$4:$E$103,3,FALSE)) -> 719
A140: 70 | B140: =IF(VLOOKUP($A140,フラッシュカードデータ!$C$4:$E$103,2,FALSE)="","",VLOOKUP($A140,フラッシュカードデータ!$C$4:$E$103,2,FALSE)) -> 929
B141: =IF(VLOOKUP($A140,フラッシュカードデータ!$C$4:$E$103,3,FALSE)="","",VLOOKUP($A140,フラッシュカードデータ!$C$4:$E$103,3,FALSE)) -> 929
A142: 71 | B142: =IF(VLOOKUP($A142,フラッシュカードデータ!$C$4:$E$103,2,FALSE)="","",VLOOKUP($A142,フラッシュカードデータ!$C$4:$E$103,2,FALSE)) -> 393
B143: =IF(VLOOKUP($A142,フラッシュカードデータ!$C$4:$E$103,3,FALSE)="","",VLOOKUP($A142,フラッシュカードデータ!$C$4:$E$103,3,FALSE)) -> 393
A144: 72 | B144: =IF(VLOOKUP($A144,フラッシュカードデータ!$C$4:$E$103,2,FALSE)="","",VLOOKUP($A144,フラッシュカードデータ!$C$4:$E$103,2,FALSE)) -> 897
B145: =IF(VLOOKUP($A144,フラッシュカードデータ!$C$4:$E$103,3,FALSE)="","",VLOOKUP($A144,フラッシュカードデータ!$C$4:$E$103,3,FALSE)) -> 897
A146: 73 | B146: =IF(VLOOKUP($A146,フラッシュカードデータ!$C$4:$E$103,2,FALSE)="","",VLOOKUP($A146,フラッシュカードデータ!$C$4:$E$103,2,FALSE)) -> 974
B147: =IF(VLOOKUP($A146,フラッシュカードデータ!$C$4:$E$103,3,FALSE)="","",VLOOKUP($A146,フラッシュカードデータ!$C$4:$E$103,3,FALSE)) -> 974
A148: 74 | B148: =IF(VLOOKUP($A148,フラッシュカードデータ!$C$4:$E$103,2,FALSE)="","",VLOOKUP($A148,フラッシュカードデータ!$C$4:$E$103,2,FALSE)) -> 153
B149: =IF(VLOOKUP($A148,フラッシュカードデータ!$C$4:$E$103,3,FALSE)="","",VLOOKUP($A148,フラッシュカードデータ!$C$4:$E$103,3,FALSE)) -> 153
A150: 75 | B150: =IF(VLOOKUP($A150,フラッシュカードデータ!$C$4:$E$103,2,FALSE)="","",VLOOKUP($A150,フラッシュカードデータ!$C$4:$E$103,2,FALSE)) -> 862
B151: =IF(VLOOKUP($A150,フラッシュカードデータ!$C$4:$E$103,3,FALSE)="","",VLOOKUP($A150,フラッシュカードデータ!$C$4:$E$103,3,FALSE)) -> 862
A152: 76 | B152: =IF(VLOOKUP($A152,フラッシュカードデータ!$C$4:$E$103,2,FALSE)="","",VLOOKUP($A152,フラッシュカードデータ!$C$4:$E$103,2,FALSE)) -> 590
B153: =IF(VLOOKUP($A152,フラッシュカードデータ!$C$4:$E$103,3,FALSE)="","",VLOOKUP($A152,フラッシュカードデータ!$C$4:$E$103,3,FALSE)) -> 590
A154: 77 | B154: =IF(VLOOKUP($A154,フラッシュカードデータ!$C$4:$E$103,2,FALSE)="","",VLOOKUP($A154,フラッシュカードデータ!$C$4:$E$103,2,FALSE)) -> 258
B155: =IF(VLOOKUP($A154,フラッシュカードデータ!$C$4:$E$103,3,FALSE)="","",VLOOKUP($A154,フラッシュカードデータ!$C$4:$E$103,3,FALSE)) -> 258
A156: 78 | B156: =IF(VLOOKUP($A156,フラッシュカードデータ!$C$4:$E$103,2,FALSE)="","",VLOOKUP($A156,フラッシュカードデータ!$C$4:$E$103,2,FALSE)) -> 471
B157: =IF(VLOOKUP($A156,フラッシュカードデータ!$C$4:$E$103,3,FALSE)="","",VLOOKUP($A156,フラッシュカードデータ!$C$4:$E$103,3,FALSE)) -> 471
A158: 79 | B158: =IF(VLOOKUP($A158,フラッシュカードデータ!$C$4:$E$103,2,FALSE)="","",VLOOKUP($A158,フラッシュカードデータ!$C$4:$E$103,2,FALSE)) -> 271
B159: =IF(VLOOKUP($A158,フラッシュカードデータ!$C$4:$E$103,3,FALSE)="","",VLOOKUP($A158,フラッシュカードデータ!$C$4:$E$103,3,FALSE)) -> 271
A160: 80 | B160: =IF(VLOOKUP($A160,フラッシュカードデータ!$C$4:$E$103,2,FALSE)="","",VLOOKUP($A160,フラッシュカードデータ!$C$4:$E$103,2,FALSE)) -> 991
B161: =IF(VLOOKUP($A160,フラッシュカードデータ!$C$4:$E$103,3,FALSE)="","",VLOOKUP($A160,フラッシュカードデータ!$C$4:$E$103,3,FALSE)) -> 991
A162: 81 | B162: =IF(VLOOKUP($A162,フラッシュカードデータ!$C$4:$E$103,2,FALSE)="","",VLOOKUP($A162,フラッシュカードデータ!$C$4:$E$103,2,FALSE)) -> 459
B163: =IF(VLOOKUP($A162,フラッシュカードデータ!$C$4:$E$103,3,FALSE)="","",VLOOKUP($A162,フラッシュカードデータ!$C$4:$E$103,3,FALSE)) -> 459
A164: 82 | B164: =IF(VLOOKUP($A164,フラッシュカードデータ!$C$4:$E$103,2,FALSE)="","",VLOOKUP($A164,フラッシュカードデータ!$C$4:$E$103,2,FALSE)) -> 247
B165: =IF(VLOOKUP($A164,フラッシュカードデータ!$C$4:$E$103,3,FALSE)="","",VLOOKUP($A164,フラッシュカードデータ!$C$4:$E$103,3,FALSE)) -> 247
A166: 83 | B166: =IF(VLOOKUP($A166,フラッシュカードデータ!$C$4:$E$103,2,FALSE)="","",VLOOKUP($A166,フラッシュカードデータ!$C$4:$E$103,2,FALSE)) -> 203
B167: =IF(VLOOKUP($A166,フラッシュカードデータ!$C$4:$E$103,3,FALSE)="","",VLOOKUP($A166,フラッシュカードデータ!$C$4:$E$103,3,FALSE)) -> 203
A168: 84 | B168: =IF(VLOOKUP($A168,フラッシュカードデータ!$C$4:$E$103,2,FALSE)="","",VLOOKUP($A168,フラッシュカードデータ!$C$4:$E$103,2,FALSE)) -> 282
B169: =IF(VLOOKUP($A168,フラッシュカードデータ!$C$4:$E$103,3,FALSE)="","",VLOOKUP($A168,フラッシュカードデータ!$C$4:$E$103,3,FALSE)) -> 282
A170: 85 | B170: =IF(VLOOKUP($A170,フラッシュカードデータ!$C$4:$E$103,2,FALSE)="","",VLOOKUP($A170,フラッシュカードデータ!$C$4:$E$103,2,FALSE)) -> 485
B171: =IF(VLOOKUP($A170,フラッシュカードデータ!$C$4:$E$103,3,FALSE)="","",VLOOKUP($A170,フラッシュカードデータ!$C$4:$E$103,3,FALSE)) -> 485
A172: 86 | B172: =IF(VLOOKUP($A172,フラッシュカードデータ!$C$4:$E$103,2,FALSE)="","",VLOOKUP($A172,フラッシュカードデータ!$C$4:$E$103,2,FALSE)) -> 143
B173: =IF(VLOOKUP($A172,フラッシュカードデータ!$C$4:$E$103,3,FALSE)="","",VLOOKUP($A172,フラッシュカードデータ!$C$4:$E$103,3,FALSE)) -> 143
A174: 87 | B174: =IF(VLOOKUP($A174,フラッシュカードデータ!$C$4:$E$103,2,FALSE)="","",VLOOKUP($A174,フラッシュカードデータ!$C$4:$E$103,2,FALSE)) -> 137
B175: =IF(VLOOKUP($A174,フラッシュカードデータ!$C$4:$E$103,3,FALSE)="","",VLOOKUP($A174,フラッシュカードデータ!$C$4:$E$103,3,FALSE)) -> 137
A176: 88 | B176: =IF(VLOOKUP($A176,フラッシュカードデータ!$C$4:$E$103,2,FALSE)="","",VLOOKUP($A176,フラッシュカードデータ!$C$4:$E$103,2,FALSE)) -> 880
B177: =IF(VLOOKUP($A176,フラッシュカードデータ!$C$4:$E$103,3,FALSE)="","",VLOOKUP($A176,フラッシュカードデータ!$C$4:$E$103,3,FALSE)) -> 880
A178: 89 | B178: =IF(VLOOKUP($A178,フラッシュカードデータ!$C$4:$E$103,2,FALSE)="","",VLOOKUP($A178,フラッシュカードデータ!$C$4:$E$103,2,FALSE)) -> 194
B179: =IF(VLOOKUP($A178,フラッシュカードデータ!$C$4:$E$103,3,FALSE)="","",VLOOKUP($A178,フラッシュカードデータ!$C$4:$E$103,3,FALSE)) -> 194
A180: 90 | B180: =IF(VLOOKUP($A180,フラッシュカードデータ!$C$4:$E$103,2,FALSE)="","",VLOOKUP($A180,フラッシュカードデータ!$C$4:$E$103,2,FALSE)) -> 838
B181: =IF(VLOOKUP($A180,フラッシュカードデータ!$C$4:$E$103,3,FALSE)="","",VLOOKUP($A180,フラッシュカードデータ!$C$4:$E$103,3,FALSE)) -> 838
A182: 91 | B182: =IF(VLOOKUP($A182,フラッシュカードデータ!$C$4:$E$103,2,FALSE)="","",VLOOKUP($A182,フラッシュカードデータ!$C$4:$E$103,2,FALSE)) -> 202
B183: =IF(VLOOKUP($A182,フラッシュカードデータ!$C$4:$E$103,3,FALSE)="","",VLOOKUP($A182,フラッシュカードデータ!$C$4:$E$103,3,FALSE)) -> 202
A184: 92 | B184: =IF(VLOOKUP($A184,フラッシュカードデータ!$C$4:$E$103,2,FALSE)="","",VLOOKUP($A184,フラッシュカードデータ!$C$4:$E$103,2,FALSE)) -> 664
B185: =IF(VLOOKUP($A184,フラッシュカードデータ!$C$4:$E$103,3,FALSE)="","",VLOOKUP($A184,フラッシュカードデータ!$C$4:$E$103,3,FALSE)) -> 664
A186: 93 | B186: =IF(VLOOKUP($A186,フラッシュカードデータ!$C$4:$E$103,2,FALSE)="","",VLOOKUP($A186,フラッシュカードデータ!$C$4:$E$103,2,FALSE)) -> 745
B187: =IF(VLOOKUP($A186,フラッシュカードデータ!$C$4:$E$103,3,FALSE)="","",VLOOKUP($A186,フラッシュカードデータ!$C$4:$E$103,3,FALSE)) -> 745
A188: 94 | B188: =IF(VLOOKUP($A188,フラッシュカードデータ!$C$4:$E$103,2,FALSE)="","",VLOOKUP($A188,フラッシュカードデータ!$C$4:$E$103,2,FALSE)) -> 819
B189: =IF(VLOOKUP($A188,フラッシュカードデータ!$C$4:$E$103,3,FALSE)="","",VLOOKUP($A188,フラッシュカードデータ!$C$4:$E$103,3,FALSE)) -> 819
A190: 95 | B190: =IF(VLOOKUP($A190,フラッシュカードデータ!$C$4:$E$103,2,FALSE)="","",VLOOKUP($A190,フラッシュカードデータ!$C$4:$E$103,2,FALSE)) -> 989
B191: =IF(VLOOKUP($A190,フラッシュカードデータ!$C$4:$E$103,3,FALSE)="","",VLOOKUP($A190,フラッシュカードデータ!$C$4:$E$103,3,FALSE)) -> 989
A192: 96 | B192: =IF(VLOOKUP($A192,フラッシュカードデータ!$C$4:$E$103,2,FALSE)="","",VLOOKUP($A192,フラッシュカードデータ!$C$4:$E$103,2,FALSE)) -> 675
B193: =IF(VLOOKUP($A192,フラッシュカードデータ!$C$4:$E$103,3,FALSE)="","",VLOOKUP($A192,フラッシュカードデータ!$C$4:$E$103,3,FALSE)) -> 675
A194: 97 | B194: =IF(VLOOKUP($A194,フラッシュカードデータ!$C$4:$E$103,2,FALSE)="","",VLOOKUP($A194,フラッシュカードデータ!$C$4:$E$103,2,FALSE)) -> 934
B195: =IF(VLOOKUP($A194,フラッシュカードデータ!$C$4:$E$103,3,FALSE)="","",VLOOKUP($A194,フラッシュカードデータ!$C$4:$E$103,3,FALSE)) -> 934
A196: 98 | B196: =IF(VLOOKUP($A196,フラッシュカードデータ!$C$4:$E$103,2,FALSE)="","",VLOOKUP($A196,フラッシュカードデータ!$C$4:$E$103,2,FALSE)) -> 643
B197: =IF(VLOOKUP($A196,フラッシュカードデータ!$C$4:$E$103,3,FALSE)="","",VLOOKUP($A196,フラッシュカードデータ!$C$4:$E$103,3,FALSE)) -> 643
A198: 99 | B198: =IF(VLOOKUP($A198,フラッシュカードデータ!$C$4:$E$103,2,FALSE)="","",VLOOKUP($A198,フラッシュカードデータ!$C$4:$E$103,2,FALSE)) -> 605
B199: =IF(VLOOKUP($A198,フラッシュカードデータ!$C$4:$E$103,3,FALSE)="","",VLOOKUP($A198,フラッシュカードデータ!$C$4:$E$103,3,FALSE)) -> 605
A200: 100 | B200: =IF(VLOOKUP($A200,フラッシュカードデータ!$C$4:$E$103,2,FALSE)="","",VLOOKUP($A200,フラッシュカードデータ!$C$4:$E$103,2,FALSE)) -> 942
... 1 more rows
